Cogmind - Beta 15 @@@ ROGUE MODE // 2025.08.03 @ 21:54:02 Player: McSaucyNugget Result: Self-destructed Performance ------------- Evolutions (9) 4500 Regions Visited (31) 6200 Robots Destroyed (624) 3120 Value Destroyed (33312) 33312 Prototype IDs (90) 1800 Alien Tech Used (2) 400 Bonus (23377) 23377 TOTAL SCORE: 72709 Bonus ------- Triggered High Security 1000 High Alert Combat Kills 11773 Follower Combat Kills 2929 Entered Garrisons 1200 Used RIF Installer 4000 Network Hubs Disabled 200 Built Enhanced Grunts 300 A7 Reached Mainframe 300 Met R17 at Cetus 500 Met R17 at Research 2000 Scanned by Researcher 500 Friendly Fire -1325 Cogmind --------- Core Integrity 934/1600 Matter 290/300 Energy 215/325 System Corruption 18% Temperature Hot (223) Movement Walking (130) Location -1/Access Parts ------- > --- POWER (3) -------- Reinforced Antimatter Reactor (fused) > --- PROPULSION (7) --- Centrium Leg Experimental Armored Exoskeleton > --- UTILITY (10) ----- Advanced Heat Sink Concept Antigrav Storage Unit Terrain Scan Processor Core Analyzer Graphene Brace (fused) Concept Matter Streamer > --- WEAPON (5) ------- (None) > --- INVENTORY (25) --- Light Antimatter Reactor Flexi-carbon Leg Biometal Leg Biometal Leg Centrium Leg Centrium Leg Experimental VSS Leg Concept Chromion Battery (800) Concept NT7 Matterbank (355) Triangulator Improved Kinecellerator Advanced Weapon Cycler Relay Coupler [Heavy] (18) Subatomic Replicator Enhanced Quantum Rifle Enhanced Quantum Rifle Enhanced Quantum Rifle Nova Cannon Enhanced Nova Cannon Core Cannon KE Penetrator Advanced Remote Datajack Peak State ------------ > --- POWER ------------ Quantum Reactor Quantum Reactor Light Quantum Reactor > --- PROPULSION ------- Armored Medium Treads Armored Medium Treads Armored Heavy Treads High-density Centrium Heavy Treads Centrium Leg > --- UTILITY ---------- 2N-1CE's Frost Array Concept Antigrav Storage Unit Long-range Terrain Scanner Advanced Terrain Scan Processor Advanced Targeting Computer Advanced Weapon Cycler Heavy Regenerative Plating Graphene Brace Relay Coupler [Proto] > --- WEAPON ----------- Enhanced Quantum Rifle Railgun Railgun Railgun Helical Railgun > --- INVENTORY -------- Reinforced Antimatter Reactor Light Quantum Reactor Centrium Leg Centrium Leg Centrium Leg Experimental VSS Leg Experimental Armored Exoskeleton Concept Chromion Battery Concept NT7 Matterbank Relay Coupler [NC] Relay Coupler [Heavy] Concept Matter Streamer Subatomic Replicator Nova Cannon Enhanced Nova Cannon Core Cannon Hypervelocity Railgun Enhanced Hardcell Cannon Enhanced Hardcell Cannon Micro-nuke Launcher Advanced Remote Datajack [Rating: 223] Favorites ----------- Power Quantum Reactor Engine Improved Ion Engine Power Core Neutrino Core Reactor Quantum Reactor Propulsion Light Treads Treads Light Treads Leg Centrium Leg Wheel Wheel Utility Huge Storage Unit Device Improved Cooling System Storage Huge Storage Unit Processor Core Analyzer Hackware Relay Coupler [NC] Protection Heavy Regenerative Plating Weapon Railgun Energy Gun Gatling Laser Energy Cannon Enhanced Nova Cannon Ballistic Gun Railgun Ballistic Cannon Enhanced Hardcell Cannon Launcher Gamma Bomb Array Special Weapon Improved Remote Datajack Impact Weapon Core Stripper Build | -11 -10 -10 -9 -9 -9 -8 -8 -8 -8 -7 -7 -6 -6 -6 -6 -6 -5 -5 -5 -5 -4 -4 -4 -3 -3 -3 -2 -2 -2 -2 -1 ------- Run | Yrd Mat Min Mat Min Exi Min Mat Sto Gar Fac Gar Fac Ext Cet Arc Hub Fac Gar Fac Gar Fac Was Fac Res Tes Gar Res Qua Frg Gar Acc Slots Evolved 18 | . . . 2 . . . 2 . . 2 . 2 . . . . 2 . . . 2 . . 2 . . 2 . . . 2 Power 2 | . . . . . . . . . . . . . . . . . . . . . 1 . . . . . 1 . . . . Propulsion 5 | . . . 1 . . . 1 . . . . . . . . . 1 . . . . . . 1 . . . . . . 1 Utility 8 | . . . . . . . 1 . . 2 . 1 . . . . 1 . . . 1 . . . . . 1 . . . 1 Weapon 3 | . . . 1 . . . . . . . . 1 . . . . . . . . . . . 1 . . . . . . . Parts Attached 341 | 5 9 4 13 . . 3 15 1 15 3 21 13 21 9 7 3 13 12 4 7 1 6 25 9 19 14 21 13 14 7 34 Power 39 | 1 2 . 1 . . 1 1 1 . . 2 2 . 1 1 . 1 1 . 1 . 2 1 . 2 2 3 2 1 1 9 Engine 9 | 1 2 . 1 . . 1 1 1 . . 2 . . . . . . . . . . . . . . . . . . . . Core 7 | . . . . . . . . . . . . 2 . . . . 1 . . 1 . 1 1 . . 1 . . . . . Reactor 23 | . . . . . . . . . . . . . . 1 1 . . 1 . . . 1 . . 2 1 3 2 1 1 9 Propulsion 86 | 2 2 2 1 . . 2 6 . 10 . 4 2 11 1 3 . 1 5 1 3 . 1 2 3 1 6 6 2 5 1 3 Treads 77 | 2 . 2 1 . . 2 6 . 10 . 4 2 11 1 3 . 1 5 1 3 . 1 2 3 . 6 6 2 2 1 . Leg 7 | . . . . . . . . . . . . . . . . . . . . . . . . . 1 . . . 3 . 3 Wheel 2 | . 2 . . . . . . . . . . . . . . . . . . . . . . . . . . . . . . Hover . | . . . . . . . . . . . . . . . . . . . . . . . . . . . . . . . . Flight . | . . . . . . . . . . . . . . . . . . . . . . . . . . . . . . . . Utility 107 | 1 1 . 3 . . . 2 . 3 3 5 6 3 3 3 2 7 2 1 3 1 3 14 2 8 3 6 3 4 2 13 Device 54 | . . . 2 . . . 1 . 1 2 1 3 1 . 2 . 5 . 1 . 1 1 7 1 6 2 4 2 3 . 8 Storage 4 | 1 1 . 1 . . . . . . . . . . . . . . . . . . . . . . . . . 1 . . Processor 14 | . . . . . . . . . 1 1 1 2 . . . . . . . . . . 2 . . . 1 . . 2 4 Hackware 15 | . . . . . . . . . . . 2 1 1 . . . 1 1 . 1 . 1 3 . . 1 1 1 . . 1 Protection 20 | . . . . . . . 1 . 1 . 1 . 1 3 1 2 1 1 . 2 . 1 2 1 2 . . . . . . Artifact . | . . . . . . . . . . . . . . . . . . . . . . . . . . . . . . . . Weapon 109 | 1 4 2 8 . . . 6 . 2 . 10 3 7 4 . 1 4 4 2 . . . 8 4 8 3 6 6 4 3 9 Energy Gun 7 | 1 . . . . . . . . . . 4 . . . . . . . . . . . . . . . . . . . 2 Energy Cannon 16 | . . . 2 . . . 1 . . . . 1 . . . . 1 . . . . . 1 2 1 . 1 2 1 . 3 Ballistic Gun 64 | . 4 2 4 . . . 3 . 2 . 4 1 7 4 . 1 . 4 1 . . . 6 2 4 2 3 2 2 3 3 Ballistic Cannon 6 | . . . . . . . 1 . . . . 1 . . . . . . . . . . . . . . 2 1 . . 1 Launcher 6 | . . . 1 . . . 1 . . . . . . . . . 1 . . . . . . . 1 1 . . 1 . . Special Weapon 9 | . . . 1 . . . . . . . 2 . . . . . 2 . 1 . . . 1 . 2 . . . . . . Impact Weapon 1 | . . . . . . . . . . . . . . . . . . . . . . . . . . . . 1 . . . Slashing Weapon . | . . . . . . . . . . . . . . . . . . . . . . . . . . . . . . . . Piercing Weapon . | . . . . . . . . . . . . . . . . . . . . . . . . . . . . . . . . Special Melee Weapon . | . . . . . . . . . . . . . . . . . . . . . . . . . . . . . . . . Unidentified Prototypes 33 | . . . 2 . . . 1 1 . . . . . 3 . 1 2 . . . . . 2 2 7 . 2 6 4 . . Corrupted Parts 3 | . . . . . . . . . . . . . . . 2 . . . . . . . . . . . . . . . 1 System Corruption 9 | . . . . . . . . . . . . . . . 8 . . . . . . . . . . . . . . . 1 Parts Lost 116 | . 6 4 . . . 4 . . 3 . 14 2 2 1 . 2 4 7 3 . . . . 2 5 1 17 1 3 6 29 Power 19 | . 2 . . . . 1 . . . . 1 . . . . . 1 1 . . . . . 1 1 . 3 . 1 . 7 Propulsion 25 | . 2 2 . . . 2 . . . . 6 1 . . . . . 3 1 . . . . . . . 3 . . 1 4 Utility 31 | . . . . . . . . . 2 . 2 1 1 1 . . 2 2 2 . . . . 1 1 . 3 1 1 2 9 Weapon 41 | . 2 2 . . . 1 . . 1 . 5 . 1 . . 2 1 1 . . . . . . 3 1 8 . 1 3 9 Highest Loss Streak 13 | . 4 2 . . . 3 . . 1 . 13 1 2 1 . 2 2 7 3 . . . . 1 3 1 6 1 1 6 11 To Critical Strikes . | . . . . . . . . . . . . . . . . . . . . . . . . . . . . . . . . Average Backups 22 | 2 15 20 22 24 25 23 24 25 24 23 21 24 24 24 23 23 21 22 25 24 24 24 22 22 21 22 22 22 21 20 21 Power 1 | . 2 2 2 2 2 1 2 2 2 2 2 2 2 1 2 2 2 1 2 2 1 . 1 1 1 1 2 1 1 1 1 Propulsion 4 | 1 6 7 7 8 8 7 6 6 6 7 2 3 5 6 5 4 2 2 4 4 5 3 3 3 3 2 2 2 2 4 5 Utility 7 | . 2 4 5 6 7 7 8 9 8 6 8 10 8 6 7 7 6 8 9 8 8 10 7 7 7 9 10 9 6 4 5 Weapon 7 | 1 4 5 6 8 8 7 7 7 6 6 6 6 6 7 7 7 7 7 7 7 7 7 8 7 6 6 5 6 8 7 7 Tool/Special . | . . . . . . . . . . . . . . . . . . . . . . . . . . . . . . . . Unused Backups 117 | . . . 14 3 . . 6 2 5 . 2 5 13 9 . 1 . 2 1 3 . 3 4 4 4 1 1 6 3 5 20 Power 20 | . . . 3 1 . . . 2 . . 1 1 2 3 . . . . . . . . . . 1 . 1 1 1 1 2 Propulsion 32 | . . . 6 . . . 2 . 1 . . . 5 3 . . . . . . . 2 . 3 1 . . 1 . 1 7 Utility 31 | . . . 2 2 . . 3 . 3 . . 2 3 . . 1 . 1 1 1 . 1 1 . 2 . . 3 1 . 4 Weapon 31 | . . . 3 . . . 1 . 1 . 1 2 3 3 . . . 1 . 2 . . 3 1 . 1 . . 1 2 6 Tool/Special 3 | . . . . . . . . . . . . . . . . . . . . . . . . . . . . 1 . 1 1 Average Slot Usage (%) 92 | . 96 99 99 100 100 99 99 98 99 99 96 99 99 93 88 92 93 92 94 92 89 76 88 86 82 80 81 80 79 83 82 Engine 3 | . 13 14 11 11 11 10 9 9 9 7 6 . . . . . . . . . . . . . . . . . . . . Core 1 | . . . . . . . . . . . . 5 6 . . . 1 . . 3 7 8 4 7 4 6 1 . . . . Reactor 3 | . . . . . . . . . . . . . . 5 6 6 3 4 5 1 . 1 5 1 3 2 9 8 8 13 11 Treads 22 | . 15 18 32 33 33 33 36 36 35 30 27 25 26 20 16 20 23 23 23 22 21 16 14 16 13 15 15 16 13 16 9 Device 10 | . . . 10 11 11 11 9 9 8 14 4 8 11 6 9 12 11 7 9 13 14 5 17 14 11 13 16 16 16 13 15 Storage 7 | . 26 28 11 11 11 11 9 9 9 7 7 6 6 6 6 6 5 5 5 5 5 5 5 4 4 4 4 4 4 4 4 Processor 6 | . . . . . . . . . . 7 13 14 13 13 13 13 11 11 11 5 5 5 5 9 9 9 8 6 4 6 9 Hackware 2 | . . . . . . . . . . . 4 4 2 . . . 4 4 5 5 5 7 6 4 3 . . 1 4 4 2 Protection 4 | . . . . . . . 8 9 8 7 6 4 4 12 8 6 4 8 6 8 8 5 5 4 3 4 4 4 4 4 3 Energy Cannon 1 | . . . 4 . . . . . . . . . . . . . . . . . . . . 1 2 . . 4 8 1 3 Ballistic Gun 21 | . 27 27 27 32 33 32 26 25 25 15 13 20 17 24 26 24 20 20 22 21 21 15 18 21 20 21 16 6 11 18 11 Peak Build Rating 223 | 5 9 9 17 18 17 18 33 33 35 37 41 48 70 102 110 103 109 113 101 101 108 120 130 142 153 161 177 208 221 209 223 Average Rating 88 | 3 7 8 12 17 17 16 29 31 32 35 36 45 53 92 106 101 104 100 96 95 101 115 119 137 145 150 163 175 207 200 205 On Entrance 82 | . 5 9 8 17 17 17 18 32 33 28 36 38 44 70 102 103 92 108 98 92 95 108 120 124 142 151 147 155 205 209 204 Naked Turns . | . . . . . . . . . . . . . . . . . . . . . . . . . . . . . . . . Heaviest Build 219 | 9 93 94 97 99 97 97 109 107 107 107 109 113 117 135 139 139 136 140 130 130 150 176 162 161 177 184 204 219 219 146 166 Greatest Support 225 | 40 40 40 60 60 60 60 80 80 80 80 80 88 120 140 160 140 170 170 160 160 153 177 180 210 210 220 215 225 225 204 204 Greatest Overweight (x) 9 | . 9 9 1 1 1 1 1 1 1 1 1 1 1 1 . . . 1 . . . 1 1 . 2 1 1 1 3 1 1 Average Overweight (x) . | . 6 6 1 1 1 1 1 1 1 1 1 1 . . . . . . . . . . . . . . . . . . . Largest Inventory Capacity 25 | 8 25 25 25 25 25 25 25 25 25 25 25 25 25 25 25 25 25 25 25 25 25 25 25 25 25 25 25 25 25 25 25 Average Capacity 24 | 6 22 25 25 25 25 25 25 25 25 25 25 25 25 25 25 25 25 25 25 25 25 25 25 25 25 25 25 25 25 25 25 Most Carried 25 | 5 21 22 25 25 25 25 25 25 25 24 25 25 25 25 25 25 25 25 25 25 25 25 25 25 25 25 25 25 25 25 25 Average Carried 23 | 2 16 20 22 24 25 23 24 25 24 23 21 24 24 24 24 24 22 23 24 24 24 24 24 24 24 24 22 24 24 24 24 Final Capacity 25 | 8 25 25 25 25 25 25 25 25 25 25 25 25 25 25 25 25 25 25 25 25 25 25 25 25 25 25 25 25 25 25 25 Final Carried 25 | 5 21 19 25 25 25 24 25 25 25 24 25 25 25 25 25 24 22 25 25 25 24 25 25 25 24 25 24 25 25 25 23 Class Distribution -------------------- 42% | Scavenger-Tank 14% | Scavenger-Gunner 11% | Tank 7% | Mutant 6% | Bothacker-Tank 4% | Commander-Tank 3% | Gunner Dominant Class ---------------- Mutant | -10/Materials Mutant | -10/Mines Gunner | -9/Materials Tank | -9/Mines Tank | -9/Exiles Tank | -8/Mines Scavenger-Tank | -8/Materials Commander-Tank | -8/Storage Scavenger-Tank | -8/Garrison Scavenger-Tank | -7/Factory Scavenger-Gunner | -7/Garrison Scavenger-Gunner | -6/Factory Scavenger-Gunner | -6/Extension Commander-Tank | -6/Cetus Commander-Tank | -6/Archives Scavenger-Tank | -6/Hub_04(d) Scavenger-Tank | -5/Factory Scavenger-Tank | -5/Garrison Bothacker-Gunner | -5/Factory Scavenger-Tank | -5/Garrison Scavenger-Tank | -4/Factory Scavenger-Tank | -4/Waste Scavenger-Tank | -4/Factory Scavenger-Tank | -3/Research Scavenger-Tank | -3/Testing Bothacker-Tank | -3/Garrison Bothacker-Skirmisher | -2/Research Scavenger-Tank | -2/Quarantine Tank | -2/Protoforge Scavenger-Tank | -2/Garrison Scavenger-Tank | -1/Access Resources | -11 -10 -10 -9 -9 -9 -8 -8 -8 -8 -7 -7 -6 -6 -6 -6 -6 -5 -5 -5 -5 -4 -4 -4 -3 -3 -3 -2 -2 -2 -2 -1 ----------- Run | Yrd Mat Min Mat Min Exi Min Mat Sto Gar Fac Gar Fac Ext Cet Arc Hub Fac Gar Fac Gar Fac Was Fac Res Tes Gar Res Qua Frg Gar Acc Matter Collected 31604 | 247 579 99 479 48 141 468 971 83 939 . 861 395 1086 473 196 630 1342 966 175 949 . 1086 2014 761 2403 3131 2745 805 2243 1680 3609 Remotely 8062 | . . . . . . . . . . . 89 249 . . . 122 597 347 . 212 . . 954 107 1138 791 667 . 813 786 1190 Salvage Created 32942 | . 958 140 797 77 . 729 1176 15 1260 . 843 235 1547 517 145 731 1538 1115 111 1023 . 1621 2028 167 2149 2797 3302 470 3044 970 3437 Parts 1576 | . 55 14 51 12 . 46 49 2 83 . 38 5 59 21 9 42 76 64 5 51 . 19 105 8 128 141 147 4 134 56 152 Haulers Intercepted 13 | . 2 . 3 . . . 4 . . . . . 1 . . . . . . . . . 1 . 1 . 1 . . . . Recyclers Shooed 11 | . 2 . . . . . . . . . . 1 4 . . . 1 . . . . . 2 . . . . . . . 1 Parts Field Recycled . | . . . . . . . . . . . . . . . . . . . . . . . . . . . . . . . . Retrieved Matter . | . . . . . . . . . . . . . . . . . . . . . . . . . . . . . . . . Parts Self-Destructed . | . . . . . . . . . . . . . . . . . . . . . . . . . . . . . . . . Prevented . | . . . . . . . . . . . . . . . . . . . . . . . . . . . . . . . . Kills | -11 -10 -10 -9 -9 -9 -8 -8 -8 -8 -7 -7 -6 -6 -6 -6 -6 -5 -5 -5 -5 -4 -4 -4 -3 -3 -3 -2 -2 -2 -2 -1 ------- Run | Yrd Mat Min Mat Min Exi Min Mat Sto Gar Fac Gar Fac Ext Cet Arc Hub Fac Gar Fac Gar Fac Was Fac Res Tes Gar Res Qua Frg Gar Acc Combat Hostiles Destroyed 518 | . 20 7 15 7 . 23 17 2 31 . 23 1 20 7 1 13 17 22 4 23 . 6 35 2 24 55 36 2 39 17 49 Melee 1 | . . . . . . . . . . . . . . . . . . . 1 . . . . . . . . . . . . Guns 384 | . 20 7 9 3 . 18 14 . 26 . 18 1 20 7 1 13 14 22 3 23 . 6 30 2 20 43 13 . 7 14 30 Cannons 36 | . . . 2 . . . . . . . 5 . . . . . . . . . . . . . . . 6 1 11 3 8 AOE 72 | . . . 4 4 . 5 3 2 5 . . . . . . . 1 . . . . . 2 . 2 8 15 1 10 . 10 Classes Destroyed 27 | . 8 . 1 . . 2 1 . 1 . . . 1 . . . 1 . . . . 1 . . 1 1 7 1 1 . . Worker 19 | . 1 1 . . . . 1 . . . . . . . . 3 1 . . . . . 4 . 1 . 5 1 . . 1 Builder 16 | . 1 . . . . 1 1 . . . . . . . . 2 1 . . . . . 3 . 3 . 2 . . . 2 Tunneler 6 | . . . . . . . . . . . . . . . . . 2 . . . . . 1 . . . 1 . . . 2 Hauler 13 | . 2 . 3 . . . 4 . . . . . 1 . . . . . . . . . 1 . 1 . 1 . . . . Recycler 16 | . 1 . 1 . . . 2 . . . . 1 2 . . . 3 . . . . . . . 2 . 2 . . . 2 Mechanic 2 | . . . . . . . . . . . . . . . . . . . . . . . . . . . 1 . 1 . . Operator 8 | . 1 . 1 . . . 2 . . . . . . . 2 . . . . . . . . . 1 . . . 1 . . Drone 1 | . . . . . . . . . . . . . . . . . . . . . . . . . . . . . 1 . . Watcher 16 | . 1 . 2 . . . 1 . . . . . . 1 . . 1 . . . . . . 1 . . 3 . 2 . 4 Swarmer 150 | . 3 7 4 7 . 11 . 2 4 . 9 . 3 . . 5 . 7 3 15 . . 13 1 3 34 1 . 5 7 6 Cutter 7 | . . . . . . . . . . . . . . . . . . . . . . . . . . 3 . . . 4 . Saboteur 3 | . . . . . . . . . . . . . . . . . . . . . . . . . . . 2 . . . 1 Grunt 160 | . 17 . 7 . . 9 13 . 12 . 11 2 9 . . 5 5 4 1 1 . . 9 . 3 9 9 1 11 2 20 Brawler 11 | . . . . . . 1 1 . 1 . . . . . . . . 1 . . . . . . . 1 2 . . . 4 Duelist 15 | . . . . . . 2 . . . . . . . . . . 3 2 . . . . . . . 1 1 . 2 . 4 Protector 2 | . . . . . . . . . . . . . . . . . . . . . . . . . . . 1 . . . 1 Researcher 4 | . . . . . . . . . . . . . . . . . . . . . . . . . 2 . . . 2 . . Sentry 52 | . . . 4 . . . 1 . 8 . 1 . 6 . 1 3 1 4 . 6 . . 3 1 . 5 1 . 4 1 2 Specialist 2 | . . . . . . . . . . . . . . . . . . . . . . . . . . . 2 . . . . Hunter 27 | . . . . . . . 2 . 4 . 1 . 1 . . . 1 . . . . . 3 . 7 . 3 . . 1 4 Programmer 49 | . . . . . . . . . 2 . 1 . . . . . 7 4 . 1 . . 6 . 11 1 8 . 4 1 3 Q-Series 9 | . . . . . . . . . . . . . . . . . . . . . . . . . . . 2 1 2 . 4 Behemoth 5 | . . . . . . . . . . . . . 1 . . . . . . . . . 1 . . 1 1 . . 1 . Compactor 6 | . . . . . . . . . . . . . . . . . . . . . . 6 . . . . . . . . . Cetus Guard 7 | . . . . . . . . . . . . . . 7 . . . . . . . . . . . . . . . . . Hotshot 4 | . . . . . . . . . . . . . . . . . . . . . . . . . . . . . 4 . . Decapitator 6 | . . . . . . . . . . . . . . . . . . . . . . . . . . . . . 6 . . Immortal 1 | . . . . . . . . . . . . . . . . . . . . . . . . . . . . . 1 . . Striker 2 | . . . . . . . . . . . . . . . . . . . . . . . . . . . 2 . . . . Executioner 1 | . . . . . . . . . . . . . . . . . . . . . . . . . . . 1 . . . . Fortress 1 | . . . . . . . . . . . . . . . . . . . . . . . . . . . . 1 . . . Thug 1 | . . . . . . . . . . . . . 1 . . . . . . . . . . . . . . . . . . Savage 1 | . . . . . . . . . . . . . . . . . . . . 1 . . . . . . . . . . . Best Kill Streak 15 | . 5 3 4 4 . 6 5 2 6 . 5 1 5 5 1 6 5 6 3 5 . 2 8 2 6 10 15 2 9 10 12 Combat Bots Only 13 | . 4 3 4 4 . 6 3 2 6 . 5 1 3 4 1 5 4 6 3 5 . 2 7 1 5 10 13 1 8 10 11 Max Kills in Single Turn 5 | . 3 1 4 2 . 3 4 2 2 . 1 1 2 1 1 3 2 2 1 2 . 1 5 1 3 3 4 2 5 2 4 Gunslinging 2 | . . . . . . 1 . . 1 . . . 1 . . . . 1 . 1 . . 1 . 1 2 1 . . 1 . Exploded 5 | . . . 4 2 . 3 3 2 2 . . . . . . . 1 . . . . . 1 . 1 3 4 1 5 . 3 Melee 1 | . . . . . . . . . . . . . . . . . . . 1 . . . . . . . . . . . . Uniques/NPCs Destroyed 1 | . . . . . . . . . . . . . . 1 . . . . . . . . . . . . . . . . . A7 (-6/Cetus) Combat | -11 -10 -10 -9 -9 -9 -8 -8 -8 -8 -7 -7 -6 -6 -6 -6 -6 -5 -5 -5 -5 -4 -4 -4 -3 -3 -3 -2 -2 -2 -2 -1 -------- Run | Yrd Mat Min Mat Min Exi Min Mat Sto Gar Fac Gar Fac Ext Cet Arc Hub Fac Gar Fac Gar Fac Was Fac Res Tes Gar Res Qua Frg Gar Acc Hostile Shots Fired 3214 | . 103 55 42 31 . 69 97 6 135 . 222 13 170 28 7 78 68 149 32 58 12 . 146 10 208 219 315 10 172 133 626 Missed 917 | . 19 12 11 7 . 16 21 . 35 . 64 3 61 12 2 20 17 36 9 16 2 . 51 6 66 60 99 4 38 32 198 Hits 2297 | . 84 43 31 24 . 53 76 6 100 . 158 10 109 16 5 58 51 113 23 42 10 . 95 4 142 159 216 6 134 101 428 Melee 112 | . . . . . . 4 5 . . . . . . . . 1 8 1 2 . . . . . . 17 17 . 22 8 27 Projectile 2185 | . 84 43 31 24 . 49 71 6 100 . 158 10 109 16 5 57 43 112 21 42 10 . 95 4 142 142 199 6 112 93 401 AOE 36 | . . . . . . . . . . . . . . . . 1 . . . . . . 3 . . 1 . . 5 3 23 Critical Strikes 125 | . . . . . . 3 4 . 7 . 1 . 1 1 1 4 5 5 3 1 . . 4 . 7 14 17 . 22 8 17 Actively Blocked 41 | . . . . . . . . . . . . . . . . . . . . . . . . . . 7 . . 19 7 8 Part Disruptions 5 | . . . . . . . . . . . 1 . . . . . . . . . . . 1 . 1 . . . . . 2 Damage Taken 42011 | . 1008 384 376 143 . 511 907 65 1007 . 2296 271 963 375 169 1387 1354 2109 568 611 31 . 1427 332 2642 2335 5534 362 2733 2422 9689 Core 3084 | . 163 50 12 25 . 74 101 10 23 . 136 57 63 25 23 166 152 113 55 66 . . 197 29 216 168 177 . 122 195 666 Absorbed by Shields 8527 | . . . . 64 . 204 344 25 372 . 130 50 311 64 . . 22 347 . 146 34 . 713 . 377 1490 589 . 1403 296 1546 Reduced by Siege Mode 163 | . . . . . . . . . . . . . . . . . . 62 . . . . . . . . 101 . . . . Ignored by Resistances 53 | . . . . . . . . . . . . . . . . . . . . . . . 53 . . . . . . . . Regen/Repaired (Parts) 6256 | . . . 126 . . . . 122 . . . . . . . . 205 . . . . . 587 . 349 646 895 704 948 596 1078 Core Remaining (%) 67 | 100 . 14 . . . 72 . . 75 . 80 . . . . 60 . . . 61 . . 82 . . 68 . . . 64 . Volleys Fired 1529 | . 89 29 49 10 . 42 77 4 80 1 77 28 69 20 9 29 49 44 5 47 . 58 92 15 88 104 84 22 93 39 176 Largest 5 | . 2 2 3 3 . 3 3 3 3 3 3 4 4 4 4 4 4 4 4 4 . 3 4 5 5 5 5 5 5 5 5 Hottest 351 | . 40 40 111 66 . 66 76 74 74 80 126 113 195 135 135 135 130 130 129 132 . 99 138 173 246 174 308 312 351 351 300 Shots Fired 4478 | . 176 52 133 24 . 120 207 6 192 3 172 52 213 74 37 96 153 150 18 153 . 159 246 35 293 439 294 35 286 169 491 Gun 3726 | . 176 52 110 21 . 117 195 3 181 2 134 24 194 72 37 89 140 147 17 144 . 152 205 25 249 431 232 8 142 137 290 Cannon 551 | . . . 20 . . . 8 . 2 1 25 22 . . . 7 2 . . . . . 24 10 35 . 42 19 121 32 181 Launcher 97 | . . . 2 3 . 3 4 3 9 . 1 . . . . . 6 . . . . . 3 . 7 8 17 1 15 . 15 Special 104 | . . . 1 . . . . . . . 12 6 19 2 . . 5 3 1 9 . 7 14 . 2 . 3 7 8 . 5 Kinetic 3797 | . 176 52 110 21 . 117 202 3 183 3 134 44 156 72 37 96 142 147 17 144 . 152 205 25 249 431 257 15 142 137 328 Thermal 481 | . . . 21 . . . 1 . . . 25 2 38 . . . . . . . . . 24 10 35 . 17 12 121 32 143 Explosive 49 | . . . 2 3 . 3 4 3 9 . 1 . . . . . . . . . . . . . . 4 3 . 2 . 15 Electromagnetic 48 | . . . . . . . . . . . . . . . . . 6 . . . . . 3 . 7 4 14 1 13 . . Robot Hit Streak 34 | . 14 8 21 2 . 12 29 5 23 3 16 6 22 10 5 8 16 15 6 7 . 12 14 6 17 12 34 8 20 13 20 Robot Miss Streak 8 | . 4 5 4 4 . 4 4 . 2 2 5 3 7 4 4 4 2 3 4 8 . 2 4 2 6 8 7 1 7 4 7 Penetration Max 2 | . . . . . . . 1 . 1 . . . 2 1 1 1 1 2 . 1 . 1 2 . 2 2 2 . 1 1 2 Secondary Targets 77 | . 2 2 . 1 . 5 3 . 5 . 4 . 5 4 . 1 1 7 . 3 . 1 9 . 7 9 2 . . 3 3 Max Gunslinging Chain 2 | . 1 1 . 1 . 1 1 . 1 . 1 . 1 1 . 1 1 1 . 1 . 1 1 . 1 2 1 . . 1 1 Shots Hit Robots 2542 | . 124 24 81 7 . 79 141 3 124 1 104 22 138 48 23 45 100 93 7 70 . 114 136 15 140 214 189 24 139 94 243 Core Hits 1438 | . 55 10 34 6 . 40 58 2 61 . 48 9 69 31 10 24 55 43 3 37 . 22 81 10 77 129 156 12 144 42 170 Critical Kills 57 | . . . 1 . . 1 1 . 2 . 2 . 4 1 2 3 5 3 . 1 . 1 . 1 6 14 5 . 2 . 2 Critical Parts Destroyed 65 | . 1 . 1 . . . 1 . 2 . . . . 1 1 6 7 3 . 2 . 2 5 2 4 12 10 . . . 5 Critical Strikes 144 | . 1 . 2 . . 1 2 1 5 . 3 1 4 2 5 9 12 7 . 3 . 7 5 4 10 28 23 . 2 . 7 Burn 1 | . . . . . . . . . . . 1 . . . . . . . . . . . . . . . . . . . . Meltdown 2 | . . . . . . . . . . . . . . . . . . . . . . . . . . . . . 2 . . Destroy 136 | . 1 . 2 . . 1 2 1 5 . 2 . 4 2 5 9 12 7 . 3 . 7 5 4 10 28 19 . . . 7 Blast 5 | . . . . . . . . . . . . 1 . . . . . . . . . . . . . . 4 . . . . Melee Attacks 5 | . . . . . . . . . . . . . . . . . . . . . . . . . . . . 5 . . . Kinetic 5 | . . . . . . . . . . . . . . . . . . . . . . . . . . . . 5 . . . Impact . | . . . . . . . . . . . . . . . . . . . . . . . . . . . . . . . . Slashing . | . . . . . . . . . . . . . . . . . . . . . . . . . . . . . . . . Piercing . | . . . . . . . . . . . . . . . . . . . . . . . . . . . . . . . . Sneak Attacks 5 | . . . . . . . . . . . . . . . . . . . . . . . . . . . . 5 . . . Combat Hostiles . | . . . . . . . . . . . . . . . . . . . . . . . . . . . . . . . . Follow-up Attacks . | . . . . . . . . . . . . . . . . . . . . . . . . . . . . . . . . Damage Inflicted 77934 | . 1538 245 1296 374 . 1472 2692 232 2497 15 1789 434 2960 1288 721 1474 3012 2343 149 1645 . 2978 4931 402 4587 6501 8812 787 7781 2695 12284 Guns 51630 | . 1304 245 902 103 . 1124 2216 48 2017 15 1368 230 2918 1288 700 1453 2444 2343 141 1645 . 2978 3774 402 3825 4951 3733 75 1951 2127 5310 Cannons 8646 | . . . 204 . . . . . . . 259 191 . . . . . . . . . . . . 110 . 1186 272 2742 568 3114 Explosions 16782 | . 234 . 177 250 . 325 465 170 480 . 162 . . . . . 568 . . . . . 926 . 631 1550 3859 122 3088 . 3775 Melee 314 | . . . . . . . . . . . . . . . . . . . . . . . . . . . . 314 . . . Ramming 562 | . . . 13 21 . 23 11 14 . . . 13 42 . 21 21 . . 8 . . . 231 . 21 . 34 4 . . 85 Kinetic 53630 | . 1304 245 902 103 . 1124 2216 48 2017 15 1306 421 2278 1288 700 1453 2444 2343 141 1645 . 2978 3774 402 3825 4951 4520 529 1951 2127 6580 Thermal 7559 | . . . 204 . . . . . . . 321 . 640 . . . 56 . . . . . 104 . 110 . 789 132 2791 568 1844 Explosive 9791 | . 234 . 177 250 . 325 465 170 480 . 162 . . . . . . . . . . . 332 . . 901 1823 . 697 . 3775 Electromagnetic 6392 | . . . . . . . . . . . . . . . . . 512 . . . . . 490 . 631 649 1646 122 2342 . . Impact . | . . . . . . . . . . . . . . . . . . . . . . . . . . . . . . . . Slashing . | . . . . . . . . . . . . . . . . . . . . . . . . . . . . . . . . Piercing . | . . . . . . . . . . . . . . . . . . . . . . . . . . . . . . . . Highest Corruption 27 | . . . . . . 3 . . 1 . . . . . 4 27 6 18 19 19 . 10 18 . 18 20 18 18 20 20 18 Average Corruption 12 | . . . . . . 3 . . 1 . . . . . 2 11 3 12 18 19 . 10 16 . 10 19 7 18 18 20 6 Corruption Purged 8 | . . . . . . . . . . . . . . . 8 . . . . . . . . . . . . . . . . Corruption Blocked . | . . . . . . . . . . . . . . . . . . . . . . . . . . . . . . . . Effects 586 | . . . . . . 1 . . 14 . . . . . 3 18 13 42 16 44 . 15 92 . 39 74 19 33 73 40 50 Message Errors 113 | . . . . . . . . . 4 . . . . . . 7 . 11 3 12 . 1 15 . 9 10 5 6 8 9 13 Matter Fused 139 | . . . . . . 1 . . 4 . . . . . . 1 5 11 7 6 . 4 18 . 10 16 7 6 24 10 9 Heat Flow Errors 62 | . . . . . . . . . . . . . . . . 6 2 1 3 8 . 1 14 . 4 8 . 4 4 5 2 Energy Discharges 53 | . . . . . . . . . 1 . . . . . 1 . 1 8 . 4 . 2 10 . 3 5 1 3 9 1 4 Parts Rejected 12 | . . . . . . . . . . . . . . . . . . . . 1 . 1 . . 2 2 . 1 3 . 2 Parts Fused 9 | . . . . . . . . . . . . . . . . . . . . . . 1 2 . . 1 . 1 1 . 3 Data Loss (minor) 60 | . . . . . . . . . 2 . . . . . 1 1 . 5 . 5 . 3 11 . 4 5 3 5 7 2 6 Data Loss (major) 21 | . . . . . . . . . . . . . . . . 1 1 2 1 1 . 1 5 . 1 2 . 2 1 1 2 Misfires 27 | . . . . . . . . . 2 . . . . . 1 1 1 . 1 1 . . 7 . 2 2 . 2 1 1 5 Alerts 17 | . . . . . . . . . . . . . . . . 1 . 2 . 3 . . 2 . 1 . . 2 2 3 1 Misdirections 7 | . . . . . . . . . . . . . . . . . . . 1 . . . 1 . . 2 . . 1 1 1 Weapon Failures 66 | . . . . . . . . . 1 . . . . . . . 3 2 . 3 . 1 7 . 3 21 3 1 12 7 2 Overload Shots . | . . . . . . . . . . . . . . . . . . . . . . . . . . . . . . . . Overflow Damage 688 | . . . 17 36 . 2 . 33 63 . 18 . 4 . . . 54 . . . . . 16 . 16 50 131 . 66 19 163 Projectiles 213 | . . . . . . . . . . . . . . . . . . . . . . . . . 8 . 111 . 11 19 64 Explosions 430 | . . . 17 36 . 2 . 33 63 . 18 . . . . . 54 . . . . . 2 . . 50 20 . 55 . 80 Melee 45 | . . . . . . . . . . . . . 4 . . . . . . . . . 14 . 8 . . . . . 19 Knockbacks 38 | . . . . . . . . . . . 4 1 2 . . 1 . . . . . . 2 . . . 7 . . . 21 Impact 6 | . . . . . . . . . . . . . 2 . . 1 . . . . . . 2 . . . . . . . 1 Kinetic 30 | . . . . . . . . . . . 4 1 . . . . . . . . . . . . . . 7 . . . 18 Secondary 2 | . . . . . . . . . . . . . . . . . . . . . . . . . . . . . . . 2 Self-Inflicted Damage 900 | . . . . . . . . 28 . . 36 . . . . . 213 . . . . . 51 . 92 69 . . 122 . 289 Shots 36 | . . . . . . . . 1 . . 1 . . . . . 5 . . . . . 2 . 2 7 . . 11 . 7 Rammed 37 | . . . 2 2 . 1 2 1 . . . 2 3 . 1 3 . . 2 . . . 12 . 2 1 2 1 . . . Targets Rammed 42 | . . . 2 2 . 1 2 1 . . . 2 3 . 1 3 . . 3 . . . 12 . 2 1 2 1 . . 4 Kicked 4 | . . . . . . . . . . . . . . . . . . . . . . . . . . . . . . . 4 Crushed 1 | . . . . . . . . . . . . . . . . . . . 1 . . . . . . . . . . . . Highest Temperature 543 | . 24 . 51 . . 36 128 12 121 9 129 72 151 . 4 234 196 227 270 238 . 412 244 9 337 173 258 80 92 358 543 Average Temperature 63 | . 8 . 18 . . 12 35 8 26 6 26 37 44 . 4 82 43 106 91 48 . 128 55 6 43 38 63 73 29 129 140 Received Heat Transfer 6277 | . 510 . 150 . . 178 379 6 416 . 231 48 224 9 9 219 138 164 115 70 . . 127 . 21 128 1151 27 313 435 1209 Effects 29 | . . . . . . . . . . . . . . . . . . . . 2 . 8 . . 1 . . . . 3 15 Shutdowns 7 | . . . . . . . . . . . . . . . . . . . . . . 1 . . 1 . . . . . 5 Energy Bleed 8 | . . . . . . . . . . . . . . . . . . . . 2 . 3 . . . . . . . . 3 Interference 7 | . . . . . . . . . . . . . . . . . . . . . . 3 . . . . . . . 3 1 Matter Decay 3 | . . . . . . . . . . . . . . . . . . . . . . . . . . . . . . . 3 Short Circuit 3 | . . . . . . . . . . . . . . . . . . . . . . 1 . . . . . . . . 2 Damage (minor) 1 | . . . . . . . . . . . . . . . . . . . . . . . . . . . . . . . 1 Siege Activations 4 | . . . . . . . . . . . . . . . . . . 1 . . . . 1 . . . 2 . . . . Total Turns 91 | . . . . . . . . . . . . . . . . . . 36 . . . . 2 . . . 53 . . . . Longest Duration 36 | . . . . . . . . . . . . . . . . . . 36 . . . . 2 . . . 34 . . . . Martial Activations . | . . . . . . . . . . . . . . . . . . . . . . . . . . . . . . . . Shielding Activations . | . . . . . . . . . . . . . . . . . . . . . . . . . . . . . . . . Robots Disrupted 2 | . . . . . . . . . . . . . . . . . . . . . . . . . . . 2 . . . . Combat Hostiles 1 | . . . . . . . . . . . . . . . . . . . . . . . . . . . 1 . . . . Robots Corrupted 27 | . . . . . . . . . . . . . . . . . 2 . . . . . 4 . 3 4 2 . 11 . 1 Combat Hostiles 24 | . . . . . . . . . . . . . . . . . 2 . . . . . 3 . 2 4 2 . 10 . 1 Parts Fried 61 | . . . . . . . . . . . . . . . . . 3 . . . . . 4 . 8 5 9 . 31 . 1 Impact Corruptions 7 | . . . . . . . . . . . . . 1 . . . . . . . . . 3 . 1 . . . . . 2 Robots Melted 2 | . . . . . . . . . . . . . . . . . . . . . . . . . . . . . 2 . . Combat Hostiles 1 | . . . . . . . . . . . . . . . . . . . . . . . . . . . . . 1 . . Parts Melted 15 | . . . . . . . . . . . . 1 5 . . 1 . . . . . . . . . . . . 6 1 1 Heat Transferred 7939 | . . . 370 . . . . . . . 718 . 1395 . . . 100 . . . . . 100 . 111 . 596 111 2275 481 1682 Parts Sabotaged 11 | . . . . . . . . . . . . . . . . 2 . . . . . . . . . 2 1 . . 2 4 Parts Stolen . | . . . . . . . . . . . . . . . . . . . . . . . . . . . . . . . . Parts Stripped 14 | . . . . . . . . . . . . . . . . . . . . . . . . . . . . 14 . . . Power Chain Reactions 9 | . . . . . . . . . . . . . . . . . . . . . . . 1 . 1 . 6 . 1 . . Alert | -11 -10 -10 -9 -9 -9 -8 -8 -8 -8 -7 -7 -6 -6 -6 -6 -6 -5 -5 -5 -5 -4 -4 -4 -3 -3 -3 -2 -2 -2 -2 -1 ------- Run | Yrd Mat Min Mat Min Exi Min Mat Sto Gar Fac Gar Fac Ext Cet Arc Hub Fac Gar Fac Gar Fac Was Fac Res Tes Gar Res Qua Frg Gar Acc Maximum Alert Level 5 | . . . . . . 1 1 1 3 2 4 2 2 2 1 3 3 4 2 4 2 . 3 2 1 5 5 4 5 5 5 Low Security (%) 37 | 100 100 100 100 100 . 74 73 88 4 . . . 77 . 21 51 . . . . . 100 42 . 76 . . . . . . Level 1 12 | . . . . . . 25 26 11 17 10 20 61 9 19 78 5 . . . . . . 14 36 23 10 . . . . . Level 2 17 | . . . . . . . . . 39 89 22 38 13 80 . 7 76 3 100 38 100 . 26 63 . 15 . . 12 . . Level 3 17 | . . . . . . . . . 38 . 44 . . . . 34 23 41 . 48 . . 16 . . 28 . 91 29 . 52 Level 4 9 | . . . . . . . . . . . 11 . . . . . . 54 . 12 . . . . . 16 48 8 44 23 24 Level 5 5 | . . . . . . . . . . . . . . . . . . . . . . . . . . 29 44 . 13 76 10 High Security 1 | . . . . . . . . . . . . . . . . . . . . . . . . . . . 6 . . . 13 Max Security . | . . . . . . . . . . . . . . . . . . . . . . . . . . . . . . . . Peak Influence 2195 | . 141 86 120 146 . 281 313 235 1068 560 1119 587 668 512 347 1094 850 1250 655 1105 579 166 1051 543 341 2195 1911 1120 1745 1835 2040 Initial 1293 | . . 21 . 42 . . 45 114 114 560 263 587 140 371 147 57 535 586 655 406 579 166 . 543 177 249 1234 1100 522 1293 1088 Average 551 | . 50 25 63 25 . 141 88 92 659 472 695 411 129 433 244 453 637 1026 620 771 523 70 364 437 147 1206 1535 1026 1193 1664 1245 Influence Increases 21138 | . 624 205 499 174 . 623 597 380 1124 15 1076 151 1123 361 259 1519 745 754 106 739 18 2 1511 103 876 1996 1280 156 1771 602 1749 Destroy 0b10 Robot/C 11430 | . 400 140 300 140 . 460 340 160 700 . 580 80 660 160 80 440 340 480 80 560 . . 760 40 520 1120 700 40 1060 370 720 Destroy 0b10 Robot/NC 588 | . 35 5 35 . . 5 55 10 . . . 5 30 10 15 50 40 . . . . . 65 5 40 5 80 15 35 . 48 Destroy Leader 1564 | . 96 30 90 20 . 70 80 50 20 . 20 10 54 . . 132 72 40 10 40 . . 154 12 72 70 128 10 124 40 120 Allied During Kill 1656 | . . . . . . . . 130 12 . 30 15 305 170 95 451 . 5 . 32 . . 116 . . 25 . 10 252 8 . Successful Hack 250 | . 8 . 11 . . . 18 4 7 . 14 3 47 . . 5 . 14 12 7 18 . 23 8 7 14 . . . 30 . Select Force Hacks 60 | . 60 . . . . . . . . . . . . . . . . . . . . . . . . . . . . . . Disable Machine 1212 | . 15 15 30 . . . 45 . 15 15 30 30 15 15 60 105 135 15 . 15 . . 195 . 135 30 60 60 105 . 72 Anti-Garrison Action 1300 | . . . . . . . . . 200 . 300 . . . . 150 . 150 . 50 . . . . . 350 . . . 100 . Destroy Structure 2043 | . 10 . 18 14 . 28 29 26 80 . 27 8 12 6 9 51 158 20 4 35 . 2 198 8 72 202 177 21 165 54 609 Partial Spotted 30 | . . . . . . . . . . . . . . . . 30 . . . . . . . . . . . . . . . Lose Combat Pursuer 1005 | . . 15 15 . . 60 30 . 90 . 75 . . . . 105 . 30 . . . . . 30 30 180 135 . 30 . 180 Influence Decreases 19222 | . 568 261 391 230 52 506 443 475 232 706 334 982 747 657 463 589 1001 342 775 215 646 479 475 823 859 134 1569 1163 974 512 1619 Entered New Map 8862 | . . 35 . 66 52 . 72 157 62 508 114 532 148 293 221 107 559 252 595 175 526 311 . 493 139 84 961 835 406 432 727 Time Decay 7962 | . 508 186 391 164 . 476 353 198 . 198 . 410 439 254 222 302 392 . 150 . 120 168 365 310 520 . 428 318 498 . 592 Lost Part 1150 | . 60 40 . . . 30 . . 30 . 140 20 20 10 . 20 40 70 30 . . . . 20 50 10 170 10 30 60 290 Lost Ally 1080 | . . . . . . . . 120 140 . 80 20 140 100 20 160 10 20 . 40 . . 110 . . 40 10 . 40 20 10 Purge Threat 168 | . . . . . . . 18 . . . . . . . . . . . . . . . . . 150 . . . . . . Squads Dispatched 94 | . 5 . 2 . . . 5 2 . . . 6 2 . . 7 7 . 1 . . . 9 7 7 . 6 2 8 . 18 Investigation 11 | . 4 . . . . . 1 . . . . . 1 . . . 1 . . . . . . 4 . . . . . . . Extermination 22 | . . . . . . . . . . . . 2 . . . 1 2 . . . . . 3 . 4 . 2 2 3 . 3 Reinforcement 29 | . 1 . 2 . . . 4 1 . . . 4 1 . . 3 1 . . . . . 4 3 3 . 1 . 1 . . Assault 30 | . . . . . . . . . . . . . . . . 2 3 . 1 . . . 2 . . . 3 . 4 . 15 Garrison 2 | . . . . . . . . 1 . . . . . . . 1 . . . . . . . . . . . . . . . Intercept . | . . . . . . . . . . . . . . . . . . . . . . . . . . . . . . . . Searches Triggered . | . . . . . . . . . . . . . . . . . . . . . . . . . . . . . . . . Construction Impeded 3 | . . . . . . . . . . . . 1 1 . . . . . . . . . . . 1 . . . . . . Haulers Reinforced 2 | . . . . . . . . . . . . . . . . . 1 . . . . . 1 . . . . . . . . Active Scanning Responses . | . . . . . . . . . . . . . . . . . . . . . . . . . . . . . . . . Cargo Convoy Interrupts 2 | . . . . . . . . . . . . 1 . . . . . . . . . . . . . . 1 . . . . Stealth | -11 -10 -10 -9 -9 -9 -8 -8 -8 -8 -7 -7 -6 -6 -6 -6 -6 -5 -5 -5 -5 -4 -4 -4 -3 -3 -3 -2 -2 -2 -2 -1 --------- Run | Yrd Mat Min Mat Min Exi Min Mat Sto Gar Fac Gar Fac Ext Cet Arc Hub Fac Gar Fac Gar Fac Was Fac Res Tes Gar Res Qua Frg Gar Acc Distress Signals 24 | . 1 . 2 . . . 2 . . . . 1 3 2 1 2 1 . . . . . 2 4 1 . . . 1 . 1 Communications Jammed 161 | . . . . . . . . . . . . . . . . 57 11 . . . . . 14 . 1 . 23 . 55 . . Distress Signals 152 | . . . . . . . . . . . . . . . . 55 9 . . . . . 13 . . . 21 . 54 . . Times Spotted 793 | . 29 9 25 7 . 27 22 6 36 . 32 9 40 10 10 37 21 26 8 29 1 6 51 7 34 65 58 6 57 21 104 Peak Tracking Total 22 | . 4 3 4 4 . 4 4 4 5 . 9 4 5 5 2 15 5 6 4 5 1 3 8 4 4 6 14 2 10 5 22 Tactical Retreats 37 | . . 1 1 . . 2 1 . 3 . 2 . . . . 2 . 1 . . . . . 1 2 8 5 . 2 . 6 Traps | -11 -10 -10 -9 -9 -9 -8 -8 -8 -8 -7 -7 -6 -6 -6 -6 -6 -5 -5 -5 -5 -4 -4 -4 -3 -3 -3 -2 -2 -2 -2 -1 ------- Run | Yrd Mat Min Mat Min Exi Min Mat Sto Gar Fac Gar Fac Ext Cet Arc Hub Fac Gar Fac Gar Fac Was Fac Res Tes Gar Res Qua Frg Gar Acc Traps Triggered 64 | . 3 . . . . . . . 9 7 11 . 2 . . 3 . 6 1 . 1 . 3 . 2 4 5 3 2 . 2 Indirectly 8 | . . . . . . . . . . . . . . . . . . . . . . . . . . 1 4 3 . . . Trap Hack Attempts . | . . . . . . . . . . . . . . . . . . . . . . . . . . . . . . . . Triggered . | . . . . . . . . . . . . . . . . . . . . . . . . . . . . . . . . Disarmed . | . . . . . . . . . . . . . . . . . . . . . . . . . . . . . . . . Reprogrammed . | . . . . . . . . . . . . . . . . . . . . . . . . . . . . . . . . Reused . | . . . . . . . . . . . . . . . . . . . . . . . . . . . . . . . . Traps Extracted . | . . . . . . . . . . . . . . . . . . . . . . . . . . . . . . . . Installed . | . . . . . . . . . . . . . . . . . . . . . . . . . . . . . . . . Triggered . | . . . . . . . . . . . . . . . . . . . . . . . . . . . . . . . . Machines | -11 -10 -10 -9 -9 -9 -8 -8 -8 -8 -7 -7 -6 -6 -6 -6 -6 -5 -5 -5 -5 -4 -4 -4 -3 -3 -3 -2 -2 -2 -2 -1 ---------- Run | Yrd Mat Min Mat Min Exi Min Mat Sto Gar Fac Gar Fac Ext Cet Arc Hub Fac Gar Fac Gar Fac Was Fac Res Tes Gar Res Qua Frg Gar Acc Machines Disabled 105 | . 1 1 2 . . . 3 . 3 1 5 2 1 1 4 8 9 5 . 2 . . 13 . 10 8 4 4 11 1 6 Max in Single Turn 4 | . 1 . 1 . . . 1 . 1 1 1 1 1 1 1 1 3 1 . 1 . . 4 . 1 2 1 1 1 1 1 Garrison Access 9 | . . . . . . . . . . . . 1 . . . 1 . . . . . . 1 1 . . 1 . . . 4 Garrison Relay 14 | . . . . . . . . . 2 . 3 . . . . . . 3 . 1 . . . . . 4 . . . 1 . Phase Generator 1 | . . . . . . . . . . . . . . . . . . . . . . . . . . 1 . . . . . Network Hub 1 | . . . . . . . . . . . . . . . . 1 . . . . . . . . . . . . . . . Machines Repaired . | . . . . . . . . . . . . . . . . . . . . . . . . . . . . . . . . Machines Dismantled 6 | . . . . . . . . . . . 1 . 1 1 . 1 . . . . . . . . 2 . . . . . . Machines Sabotaged . | . . . . . . . . . . . . . . . . . . . . . . . . . . . . . . . . Overloaded Fab Kills . | . . . . . . . . . . . . . . . . . . . . . . . . . . . . . . . . Hacking | -11 -10 -10 -9 -9 -9 -8 -8 -8 -8 -7 -7 -6 -6 -6 -6 -6 -5 -5 -5 -5 -4 -4 -4 -3 -3 -3 -2 -2 -2 -2 -1 --------- Run | Yrd Mat Min Mat Min Exi Min Mat Sto Gar Fac Gar Fac Ext Cet Arc Hub Fac Gar Fac Gar Fac Was Fac Res Tes Gar Res Qua Frg Gar Acc Machines Accessed 97 | . 8 . 8 . 1 . 6 3 2 2 3 6 8 . . 4 4 1 3 2 3 . 3 5 6 2 4 1 4 3 5 Terminals 68 | . 6 . 7 . . . 6 1 2 1 3 4 8 . . 4 1 1 . 2 2 . 2 2 4 2 2 1 3 3 1 Fabricators 2 | . . . . . . . . . . . . . . . . . . . . . 1 . . . 1 . . . . . . Repair Stations 5 | . . . 1 . . . . 1 . . . . . . . . 1 . 1 . . . 1 . . . . . . . . Recycling Units 6 | . 2 . . . . . . . . . . . . . . . 1 . . . . . . 2 . . 1 . . . . Scanalyzers 1 | . . . . . . . . . . . . . . . . . . . 1 . . . . . . . . . . . . Garrison Access 14 | . . . . . . . . 1 . 1 . 2 . . . . 1 . 1 . . . . 1 1 . 1 . 1 . 4 Total Hacks 191 | . 13 . 16 . 1 . 19 6 2 2 6 14 18 . . 7 9 1 6 3 5 . 8 16 11 5 4 1 6 5 7 Successful 91 | . 6 . 8 . 1 . 12 5 2 1 1 7 8 . . 1 2 1 3 1 3 . 3 6 8 2 1 . 2 2 5 Failed 100 | . 7 . 8 . . . 7 1 . 1 5 7 10 . . 6 7 . 3 2 2 . 5 10 3 3 3 1 4 3 2 Catastrophic 21 | . . . . . . . . . . 1 . 2 . . . 2 2 . . 1 . . 1 1 2 1 2 . 3 2 1 Database Lockouts . | . . . . . . . . . . . . . . . . . . . . . . . . . . . . . . . . Manual 65 | . 13 . 12 . . . 12 . . . . 3 8 1 . 2 . . . . . . . 5 5 . 2 1 1 . . Terminals 145 | . 11 . 14 . . . 19 2 2 1 6 12 18 . . 7 3 1 . 3 4 . 3 10 9 5 2 1 5 5 2 Fabricators 2 | . . . . . . . . . . . . . . . . . . . . . 1 . . . 1 . . . . . . Repair Stations 16 | . . . 2 . . . . 3 . . . . . . . . 4 . 2 . . . 5 . . . . . . . . Recycling Units 8 | . 2 . . . . . . . . . . . . . . . 1 . . . . . . 4 . . 1 . . . . Scanalyzers 3 | . . . . . . . . . . . . . . . . . . . 3 . . . . . . . . . . . . Garrison Access 16 | . . . . . . . . 1 . 1 . 2 . . . . 1 . 1 . . . . 2 1 . 1 . 1 . 5 Terminal Hacks 37 | . . . . . 1 . 5 2 2 . 1 4 5 . . 1 . 1 . 1 2 . 1 1 5 2 . . 1 2 . Record 1 | . . . . . 1 . . . . . . . . . . . . . . . . . . . . . . . . . . Open Door 7 | . . . . . . . . . 1 . . . 4 . . . . . . 1 . . . . . 1 . . . . . Branch Access Points 3 | . . . . . . . 1 . . . . . . . . . . . . . . . . 1 1 . . . . . . Emergency Access Points 6 | . . . . . . . . . 1 . 1 . . . . . . 1 . . 1 . . . . 1 . . . 1 . Terminal Index 1 | . . . . . . . 1 . . . . . . . . . . . . . . . . . . . . . . . . Alert Level 1 | . . . . . . . . 1 . . . . . . . . . . . . . . . . . . . . . . . Unreport Threat 3 | . . . . . . . 2 . . . . . . . . . . . . . . . . . 1 . . . . . . Locate Traps 1 | . . . . . . . . . . . . . . . . . . . . . . . . . 1 . . . . . . Maintenance Status 1 | . . . . . . . . . . . . 1 . . . . . . . . . . . . . . . . . . . Hauler Manifests 1 | . . . . . . . . . . . . 1 . . . . . . . . . . . . . . . . . . . Zone Layout 10 | . . . . . . . 1 1 . . . 2 1 . . 1 . . . . 1 . 1 . 2 . . . . . . Patrol Navigation 1 | . . . . . . . . . . . . . . . . . . . . . . . . . . . . . . 1 . Proto ID Catalog 1 | . . . . . . . . . . . . . . . . . . . . . . . . . . . . . 1 . . Fabricator Hacks 2 | . . . . . . . . . . . . . . . . . . . . . 1 . . . 1 . . . . . . Network Status 2 | . . . . . . . . . . . . . . . . . . . . . 1 . . . 1 . . . . . . Repair Station Hacks 8 | . . . 2 . . . . 2 . . . . . . . . 1 . 1 . . . 2 . . . . . . . . Scan Component 5 | . . . 1 . . . . 1 . . . . . . . . 1 . 1 . . . 1 . . . . . . . . Repair 3 | . . . 1 . . . . 1 . . . . . . . . . . . . . . 1 . . . . . . . . Recycling Unit Hacks 3 | . . . . . . . . . . . . . . . . . . . . . . . . 3 . . . . . . . Retrieve Components 3 | . . . . . . . . . . . . . . . . . . . . . . . . 3 . . . . . . . Scanalyzer 1 | . . . . . . . . . . . . . . . . . . . 1 . . . . . . . . . . . . Insert Component 1 | . . . . . . . . . . . . . . . . . . . 1 . . . . . . . . . . . . Garrison Access Hacks 16 | . . . . . . . . 1 . 1 . 2 . . . . 1 . 1 . . . . 2 1 . 1 . 1 . 5 Unlock Access 7 | . . . . . . . . 1 . 1 . 1 . . . . 1 . 1 . . . . . 1 . . . 1 . . Seal Access 7 | . . . . . . . . . . . . 1 . . . . . . . . . . . 1 . . 1 . . . 4 Coupler Status 2 | . . . . . . . . . . . . . . . . . . . . . . . . 1 . . . . . . 1 Unauthorized Hacks 24 | . 6 . 6 . . . 7 . . . . 1 3 . . . . . . . . . . . 1 . . . . . . Terminals 22 | . 4 . 6 . . . 7 . . . . 1 3 . . . . . . . . . . . 1 . . . . . . Botnet 7 | . . . 1 . . . 2 . . . . 1 2 . . . . . . . . . . . 1 . . . . . . Skim 15 | . 4 . 5 . . . 5 . . . . . 1 . . . . . . . . . . . . . . . . . . Fabricators . | . . . . . . . . . . . . . . . . . . . . . . . . . . . . . . . . Repair Stations . | . . . . . . . . . . . . . . . . . . . . . . . . . . . . . . . . Recycling Units 2 | . 2 . . . . . . . . . . . . . . . . . . . . . . . . . . . . . . Tunnel 2 | . 2 . . . . . . . . . . . . . . . . . . . . . . . . . . . . . . Scanalyzers . | . . . . . . . . . . . . . . . . . . . . . . . . . . . . . . . . Garrison Access . | . . . . . . . . . . . . . . . . . . . . . . . . . . . . . . . . Data Cores Recovered 1 | . . . . . . . . . . . . . . . . . . . . . . . . . 1 . . . . . . Used . | . . . . . . . . . . . . . . . . . . . . . . . . . . . . . . . . Hacking Detections 67 | . 5 . 4 . . . 4 1 . 2 2 4 8 1 . 4 3 1 3 1 1 . 2 5 5 . 3 1 4 1 2 Full Trace Events 4 | . . . . . . . 1 . . . 1 . . . . . 1 . . . . . . . . . . . . 1 . Feedback Events . | . . . . . . . . . . . . . . . . . . . . . . . . . . . . . . . . Feedback Blocked . | . . . . . . . . . . . . . . . . . . . . . . . . . . . . . . . . Robot Schematics Acquired 2 | . . . . . . . . . . . . . . . . . . . . . . . . . . . . . 2 . . Robots Built . | . . . . . . . . . . . . . . . . . . . . . . . . . . . . . . . . Authchips . | . . . . . . . . . . . . . . . . . . . . . . . . . . . . . . . . Time . | . . . . . . . . . . . . . . . . . . . . . . . . . . . . . . . . Total Robot Build Rating . | . . . . . . . . . . . . . . . . . . . . . . . . . . . . . . . . Part Schematics Acquired 10 | . . . . . . . . . . . . . . . . . . . . . . . . . 5 . . . 5 . . Parts Built . | . . . . . . . . . . . . . . . . . . . . . . . . . . . . . . . . Authchips . | . . . . . . . . . . . . . . . . . . . . . . . . . . . . . . . . Time . | . . . . . . . . . . . . . . . . . . . . . . . . . . . . . . . . Total Part Build Rating . | . . . . . . . . . . . . . . . . . . . . . . . . . . . . . . . . Parts Repaired 3 | . . . 1 . . . . 1 . . . . . . . . . . . . . . 1 . . . . . . . . Time 185 | . . . 26 . . . . 51 . . . . . . . . . . . . . . 108 . . . . . . . . Parts Recycled . | . . . . . . . . . . . . . . . . . . . . . . . . . . . . . . . . Recycled Matter . | . . . . . . . . . . . . . . . . . . . . . . . . . . . . . . . . Retrieved Matter . | . . . . . . . . . . . . . . . . . . . . . . . . . . . . . . . . Retrieved Components 1 | . . . . . . . . . . . . . . . . . . . . . . . . 1 . . . . . . . Parts Scanalyzed . | . . . . . . . . . . . . . . . . . . . . . . . . . . . . . . . . Part Schematics Acquired . | . . . . . . . . . . . . . . . . . . . . . . . . . . . . . . . . Parts Damaged . | . . . . . . . . . . . . . . . . . . . . . . . . . . . . . . . . Bothacking | -11 -10 -10 -9 -9 -9 -8 -8 -8 -8 -7 -7 -6 -6 -6 -6 -6 -5 -5 -5 -5 -4 -4 -4 -3 -3 -3 -2 -2 -2 -2 -1 ------------ Run | Yrd Mat Min Mat Min Exi Min Mat Sto Gar Fac Gar Fac Ext Cet Arc Hub Fac Gar Fac Gar Fac Was Fac Res Tes Gar Res Qua Frg Gar Acc Used RIF Installer 8 | . . . . . . . . . 1 . 1 . . . . . . 2 . 2 . . . . . 1 . . . 1 . Coupler Efficiency 1 | . . . . . . . . . . . . . . . . . . 1 . . . . . . . . . . . . . Hotswap 1 | . . . . . . . . . . . . . . . . . . . . . . . . . . 1 . . . . . Code Merge 1 | . . . . . . . . . . . . . . . . . . . . 1 . . . . . . . . . . . Threat Obfuscator 1 | . . . . . . . . . . . . . . . . . . . . . . . . . . . . . . 1 . Zone Cloak 1 | . . . . . . . . . . . . . . . . . . . . 1 . . . . . . . . . . . Structural Interface 1 | . . . . . . . . . . . 1 . . . . . . . . . . . . . . . . . . . . Autooverride 1 | . . . . . . . . . . . . . . . . . . 1 . . . . . . . . . . . . . Robots Hacked 45 | . . . . . . . . . . . 4 2 3 1 . . 3 2 . 3 . 6 9 . 2 . 2 1 4 . 3 Non-combat 12 | . . . . . . . . . . . . . . . . . 3 . . . . . 4 . . . 2 . . . 3 Combat 33 | . . . . . . . . . . . 4 2 3 1 . . . 2 . 3 . 6 5 . 2 . . 1 4 . . Autooverrided 2 | . . . . . . . . . . . . . . . . . . . . . . . . . . . . . 2 . . Robot Hacks Applied 48 | . . . . . . . . . . . 4 2 4 1 . . 4 3 . 4 . 6 9 . 2 . 2 1 3 . 3 parse_system 1 | . . . . . . . . . . . . . . 1 . . . . . . . . . . . . . . . . . find_chute 1 | . . . . . . . . . . . . . . . . . 1 . . . . . . . . . . . . . . find_fabricator 1 | . . . . . . . . . . . . . . . . . 1 . . . . . . . . . . . . . . drop_inventory 3 | . . . . . . . . . . . . . . . . . 1 . . . . . 2 . . . . . . . . map_route 4 | . . . . . . . . . . . . . . . . . . . . . . . 1 . . . 1 . . . 2 disable_scanner 2 | . . . . . . . . . . . . . . . . . . . . . . . . . 2 . . . . . . ignore_targets 6 | . . . . . . . . . . . . . . . . . . . . . . 6 . . . . . . . . . find_garrison 1 | . . . . . . . . . . . . . . . . . . . . . . . 1 . . . . . . . . overload_power 1 | . . . . . . . . . . . . . . . . . . . . 1 . . . . . . . . . . . amplify_resonance 9 | . . . . . . . . . . . . 1 2 . . . . 2 . 2 . . 1 . . . . . 1 . . overwrite_iff 9 | . . . . . . . . . . . 4 1 2 . . . . 1 . 1 . . . . . . . . . . . formatsys_low 3 | . . . . . . . . . . . . . . . . . 1 . . . . . 1 . . . . . . . 1 formatsys_high 7 | . . . . . . . . . . . . . . . . . . . . . . . 3 . . . 1 1 2 . . Relay Couplers Released 68 | . . . . . . . . . 9 . 12 . . . . 3 4 14 . 4 . . 1 . . 14 . . . 5 2 Machine Destruction 61 | . . . . . . . . . 9 . 12 . . . . . . 14 . 4 . . 1 . . 14 . . . 5 2 Programmers 7 | . . . . . . . . . . . . . . . . 3 4 . . . . . . . . . . . . . . Attached 15 | . . . . . . . . . . . 2 1 1 . . . 1 1 . 1 . 1 3 . . 1 1 1 . . 1 Fabnet Peak Effective % . | . . . . . . . . . . . . . . . . . . . . . . . . . . . . . . . . Robots Rewired 17 | . . . . . . . . . 2 . 3 . 12 . . . . . . . . . . . . . . . . . . Allies Hacked 1 | . . . . . . . . . . . . . . . . . . . . . . . . . . . . . . . 1 Hacks Repelled . | . . . . . . . . . . . . . . . . . . . . . . . . . . . . . . . . Allies | -11 -10 -10 -9 -9 -9 -8 -8 -8 -8 -7 -7 -6 -6 -6 -6 -6 -5 -5 -5 -5 -4 -4 -4 -3 -3 -3 -2 -2 -2 -2 -1 -------- Run | Yrd Mat Min Mat Min Exi Min Mat Sto Gar Fac Gar Fac Ext Cet Arc Hub Fac Gar Fac Gar Fac Was Fac Res Tes Gar Res Qua Frg Gar Acc Total Allies 77 | . . 3 . . . . . 10 4 . 7 1 22 5 . . 1 1 . 4 . . 8 . . 2 1 1 4 2 1 Largest Group 18 | . . 3 . . . . . 10 3 1 3 2 13 18 12 9 1 1 . 2 . . 8 . . 2 1 1 3 2 1 Highest-Rated Group 994 | . . 40 . . . . . 173 56 21 82 67 517 994 626 536 23 24 . 190 . . 354 . . 80 45 344 454 175 36 Highest-Rated Ally 344 | . . 16 . . . . . 29 31 21 32 47 159 151 96 96 23 24 . 95 . . 116 . . 51 45 344 264 95 36 Total Orders 47 | . . . . . . . . 2 2 . 4 2 . 2 2 . 3 . . . . . 5 . . . . 3 20 . 2 STAY 17 | . . . . . . . . 1 1 . 2 1 . 1 1 . . . . . . . 1 . . . . 1 8 . . FOLLOW 24 | . . . . . . . . 1 1 . 2 1 . 1 1 . 2 . . . . . 1 . . . . 2 12 . . AID 6 | . . . . . . . . . . . . . . . . . 1 . . . . . 3 . . . . . . . 2 Ally Attacks 488 | . . 3 . . . . . 36 28 . 29 9 75 47 25 57 . 5 . 24 . . 78 . . 3 . 7 51 11 . Total Damage 14145 | . . 105 . . . . . 513 455 . 499 254 1881 1054 759 2179 . 77 . 763 . . 1483 . . 39 . 405 3139 540 . Kills 100 | . . 2 . . . . . 8 4 . 6 4 16 2 6 15 . 2 . 6 . . 9 . . 1 . 2 15 2 . Allies Corrupted 3 | . . . . . . . . . . . . . . . . . . . . 1 . . 1 . . . . . . . 1 Allies Melted . | . . . . . . . . . . . . . . . . . . . . . . . . . . . . . . . . Intel | -11 -10 -10 -9 -9 -9 -8 -8 -8 -8 -7 -7 -6 -6 -6 -6 -6 -5 -5 -5 -5 -4 -4 -4 -3 -3 -3 -2 -2 -2 -2 -1 ------- Run | Yrd Mat Min Mat Min Exi Min Mat Sto Gar Fac Gar Fac Ext Cet Arc Hub Fac Gar Fac Gar Fac Was Fac Res Tes Gar Res Qua Frg Gar Acc Active Infowar (turns) 12161 | . . . . . . . . . . 317 106 510 153 . . 653 807 89 . 381 144 5 1935 693 1167 37 1030 624 1279 115 2116 Sensors 511 | . . . . . . . . . . . . 510 1 . . . . . . . . . . . . . . . . . . Terrain 5411 | . . . . . . . . . . . . . . . . . . . . . . . 278 689 883 . 589 405 451 . 2116 Seismic 2090 | . . . . . . . . . . . . . . . . . . . . . . . . . . . 72 458 368 115 1077 Triangulation 53 | . . . . . . . . . . . . . . . . . . . . . . . . . . . . . . . 53 Jamming 8465 | . . . . . . . . . . 317 106 . 152 . . 653 807 89 . 381 144 5 1657 625 701 37 1030 394 1277 90 . Robot Analysis Total . | . . . . . . . . . . . . . . . . . . . . . . . . . . . . . . . . Derelict Logs Recovered 3 | . . 2 . 1 . . . . . . . . . . . . . . . . . . . . . . . . . . . Drone Launches . | . . . . . . . . . . . . . . . . . . . . . . . . . . . . . . . . Drone Recoveries . | . . . . . . . . . . . . . . . . . . . . . . . . . . . . . . . . Exploration | -11 -10 -10 -9 -9 -9 -8 -8 -8 -8 -7 -7 -6 -6 -6 -6 -6 -5 -5 -5 -5 -4 -4 -4 -3 -3 -3 -2 -2 -2 -2 -1 ------------- Run | Yrd Mat Min Mat Min Exi Min Mat Sto Gar Fac Gar Fac Ext Cet Arc Hub Fac Gar Fac Gar Fac Was Fac Res Tes Gar Res Qua Frg Gar Acc Turns Passed 32975 | 76 1703 625 1130 945 617 1578 1963 417 1717 404 1738 981 2024 552 466 671 928 977 313 1047 251 419 2017 693 1488 1239 1121 704 1339 664 2168 Spaces Moved 13496 | 42 718 221 359 377 258 595 574 137 570 158 576 362 724 226 102 336 433 454 179 538 153 125 996 392 650 531 478 318 561 307 1046 Core 2 | 2 . . . . . . . . . . . . . . . . . . . . . . . . . . . . . . . Treads 12258 | 40 96 68 359 377 258 595 574 137 570 158 576 362 724 226 102 336 433 454 179 538 153 125 996 392 649 531 478 318 560 307 587 Legs 461 | . . . . . . . . . . . . . . . . . . . . . . . . . 1 . . . 1 . 459 Wheels 775 | . 622 153 . . . . . . . . . . . . . . . . . . . . . . . . . . . . . Hover . | . . . . . . . . . . . . . . . . . . . . . . . . . . . . . . . . Flight . | . . . . . . . . . . . . . . . . . . . . . . . . . . . . . . . . Fastest Speed 50 | 50 160 215 240 240 240 240 240 245 240 240 240 240 160 160 160 160 160 160 160 162 162 162 155 152 160 160 158 158 158 166 125 Average Speed 191 | 154 194 247 240 240 240 240 243 245 243 240 240 240 228 161 160 160 160 164 160 162 162 164 157 157 163 162 168 178 161 167 148 Slowest Speed 350 | 160 320 320 240 240 240 240 245 245 245 240 240 240 240 240 160 160 160 240 162 163 162 242 232 163 320 240 249 241 350 246 190 Overloaded Moves . | . . . . . . . . . . . . . . . . . . . . . . . . . . . . . . . . Propulsion Burnouts . | . . . . . . . . . . . . . . . . . . . . . . . . . . . . . . . . Robots Hopped . | . . . . . . . . . . . . . . . . . . . . . . . . . . . . . . . . Potential Cave-ins 31 | . . . . . . . . . . . . . . . . . . . . . . . 2 . 1 . 2 . 11 . 15 Cave-ins Triggered 2 | . . . . . . . . . . . . . . . . . . . . . . . . . 1 . . . . . 1 Exploration Rate (%) 49 | 4 96 42 50 70 65 99 57 22 76 5 79 14 88 73 79 42 19 63 9 70 5 67 36 17 78 82 20 35 21 51 34 Regions Visited 31 Branch Regions 12 Pre-discovered Areas 6 | . 2 . 2 . 1 . 1 . . . . . . . . . . . . . . . . . . . . . . . . Known Exits Taken 11 | . . . 1 . . 1 1 1 . 1 . 1 . . . . 1 . 1 . . . . 1 1 . . . 1 . . Unknown Exits Taken 12 | 1 1 1 . 1 1 . . . . . . . 1 1 1 1 . . . . . . 1 . . . 1 1 . . . Scrap Searched 3 | . . 1 . 1 . 1 . . . . . . . . . . . . . . . . . . . . . . . . . Spaces Dug 123 | . . . . . . . 3 . . . . 6 . . . 4 2 . . . . . 13 2 12 . 5 5 20 . 51 Terrain Destroyed 1168 | . 8 . 19 17 . 36 30 36 43 . 8 8 7 15 11 33 94 25 4 11 . 4 117 5 60 112 64 7 88 20 286 Melee . | . . . . . . . . . . . . . . . . . . . . . . . . . . . . . . . . Projectile 500 | . . . . . . . 6 . 3 . . 8 6 15 11 33 31 25 4 9 . 4 50 5 49 13 21 7 63 18 119 AOE 652 | . 8 . 19 17 . 36 24 36 40 . 8 . . . . . 63 . . . . . 67 . 8 93 42 . 25 . 166 Terrain Rammed . | . . . . . . . . . . . . . . . . . . . . . . . . . . . . . . . . Walls Destroyed . | . . . . . . . . . . . . . . . . . . . . . . . . . . . . . . . . Machines Disabled . | . . . . . . . . . . . . . . . . . . . . . . . . . . . . . . . . Actions | -11 -10 -10 -9 -9 -9 -8 -8 -8 -8 -7 -7 -6 -6 -6 -6 -6 -5 -5 -5 -5 -4 -4 -4 -3 -3 -3 -2 -2 -2 -2 -1 --------- Run | Yrd Mat Min Mat Min Exi Min Mat Sto Gar Fac Gar Fac Ext Cet Arc Hub Fac Gar Fac Gar Fac Was Fac Res Tes Gar Res Qua Frg Gar Acc Total 17911 | 51 863 255 524 398 257 652 983 213 754 180 774 441 957 357 382 398 562 585 196 650 157 233 1319 450 874 730 664 429 845 393 1385 Wait 1124 | . 22 . 54 . . 1 270 62 39 . 19 3 17 64 255 4 23 9 1 13 . 23 104 . 9 14 18 20 67 1 12 Move 13473 | 41 717 220 358 376 257 594 573 137 569 158 575 362 723 225 101 336 433 453 179 537 153 124 995 391 650 530 477 317 561 306 1045 Hop . | . . . . . . . . . . . . . . . . . . . . . . . . . . . . . . . . Pick Up 344 | 5 24 2 23 4 . 4 14 2 8 2 19 11 24 9 3 4 9 19 1 9 . 4 17 8 15 14 18 12 21 10 29 Fast Attach 183 | 5 1 . 2 . . . . 2 3 . . 4 . 3 3 2 4 14 2 11 1 3 15 6 16 16 8 9 14 12 27 Attach 176 | . 7 4 2 . . 4 3 . 2 3 15 6 6 1 3 1 10 11 . 3 2 1 9 6 7 3 20 5 17 5 20 Detach 80 | . . . 1 . . . 1 . . 1 . 4 1 2 1 . 6 2 1 . 1 6 8 3 4 2 8 4 8 3 13 Swap 420 | . 2 . 15 2 . 5 23 2 15 1 19 10 35 8 2 12 21 10 2 11 . 4 40 7 40 24 23 13 40 3 31 Drop 378 | . 1 . 18 4 . 1 20 3 17 . 4 12 33 17 4 5 7 21 2 19 . 10 27 14 27 22 6 21 24 14 25 Fire 1529 | . 89 29 49 10 . 42 77 4 80 1 77 28 69 20 9 29 49 44 5 47 . 58 92 15 88 104 84 22 93 39 176 Melee 5 | . . . . . . . . . . . . . . . . . . . . . . . . . . . . 5 . . . Ram . | . . . . . . . . . . . . . . . . . . . . . . . . . . . . . . . . Kick 4 | . . . . . . . . . . . . . . . . . . . . . . . . . . . . . . . 4 Crush 36 | . . . 2 2 . 1 2 1 . . . 1 3 . 1 2 . . 3 . . . 12 . 2 1 2 1 . . . Escape Stasis 50 | . . . . . . . . . 14 14 17 . 2 . . . . . . . . . . . . . . . . . 3 Rewire 66 | . . . . . . . . . 7 . 21 . 36 . . . . 2 . . . . . . . . . . . . . Trap . | . . . . . . . . . . . . . . . . . . . . . . . . . . . . . . . . Miscellaneous 43 | . . . . . . . . . . . 8 . 8 8 . 3 . . . . . . . . 16 . . . . . . Route ------- -11/Scrapyard -10/Materials (discovered 6 exits: *Mat x3 / [*Min x2] / [*Sub]) -10/Mines -9/Materials (discovered 4 exits: *Mat x3 / *Min) -9/Mines (discovered 4 exits: *Mat x2 / *Exi / [*Zio]) -9/Exiles -8/Mines (discovered 2 exits: *Mat x2) -8/Materials (discovered 4 exits: *Fac x2 / *Sto x2) -8/Storage (discovered 2 exits: Rec / Gar) -8/Garrison (discovered 2 exits: *Fac x2) -7/Factory (discovered 3 exits: Low x2 / Gar) -7/Garrison (discovered 2 exits: *Fac x2) -6/Factory (discovered 2 exits: *Ext / Gar) -6/Extension (discovered 2 exits: *Fac / *Cet) -6/Cetus (discovered 2 exits: *Fac / [*Arc]) -6/Archives (discovered 2 exits: *Fac / *Hub) -6/Hub_04(d) (discovered 2 exits: *Fac x2) -5/Factory (discovered 2 exits: [*Upp] / Gar) -5/Garrison (discovered 2 exits: *Fac x2) -5/Factory (discovered 2 exits: *Fac / Gar) -5/Garrison (discovered 3 exits: *Fac x3) -4/Factory -4/Waste -4/Factory (discovered 2 exits: *Res x2) -3/Research (discovered 4 exits: Res / Arm / *Tes x2) -3/Testing (discovered 2 exits: *Res / Gar) -3/Garrison (discovered 3 exits: *Res x3) -2/Research (discovered 2 exits: *Qua x2) -2/Quarantine (discovered 3 exits: Acc / [*Sec] / *Frg) -2/Protoforge (discovered 2 exits: *Acc / Gar) -2/Garrison (discovered 2 exits: *Acc x2) -1/Access History --------- Turn | Location | Event 9 | -11/Scrapyard | Discovered new exit (range 14) 77 | -11/Scrapyard | Entered Materials 268 | -10/Materials | Discovered new exit (range 5) 320 | -10/Materials | Build established: Mutant 594 | -10/Materials | Discovered new exit (range 7) 702 | -10/Materials | Discovered new exit (range 11) 869 | -10/Materials | Core integrity fell below 50% 897 | -10/Materials | Lost 4 parts (2n2w) 921 | -10/Materials | Discovered new exit (range 10) 941 | -10/Materials | Discovered new exit (range 9) 1377 | -10/Materials | Discovered new exit (range 13) 1780 | -10/Materials | Entered Mines 1830 | -10/Mines | Met a Derelict bent on vengeance 1972 | -10/Mines | Learned Materials non-interactive machine intel 2014 | -10/Mines | Assisted by bots powering up and referring to "LRC-V3" 2171 | -10/Mines | Core integrity fell below 20% 2197 | -10/Mines | Lost 3 allies 2201 | -10/Mines | Learned Materials emergency access door positions 2236 | -10/Mines | Discovered new exit (range 5) 2405 | -10/Mines | Entered Materials 2405 | -9/Materials | Evolved 2 slots: Propulsion x1, Weapon x1 2406 | -9/Materials | Loaded intel: 25 non-interactive machine locations 2727 | -9/Materials | Build established: Gunner 2809 | -9/Materials | Repaired Lgt. Treads 3155 | -9/Materials | Discovered new exit (range 16) 3247 | -9/Materials | Learned Recycling recycling unit intel 3304 | -9/Materials | Identified exit to Mines 3407 | -9/Materials | Loaded intel: 7 trap records 3420 | -9/Materials | Identified exit to Materials 3424 | -9/Materials | Learned 4 Recycling zone layouts 3439 | -9/Materials | Learned location of Recycling (-8) 3464 | -9/Materials | Learned Storage stockpile data 3535 | -9/Materials | Entered Mines 3839 | -9/Mines | Build established: Tank 4283 | -9/Mines | Learned 2 Materials zone layouts 4314 | -9/Mines | Found a damaged Exp. Sensor Array with a note attached 4319 | -9/Mines | Found Prototype Device 4376 | -9/Mines | A Derelict revealed a hidden shortcut to a safe place 4389 | -9/Mines | Deemed a non-threat by the Exiles lab entrance 4389 | -9/Mines | Discovered new exit (range 5) 4480 | -9/Mines | Entered Exiles 4545 | -9/Exiles | Met 8R-AWN 4579 | -9/Exiles | Met EX-HEX 4651 | -9/Exiles | Met EX-BIN 4800 | -9/Exiles | Learned location of Zion (-7) 4802 | -9/Exiles | Met EX-DEC 5071 | -9/Exiles | Discovered new exit (range 14) 5097 | -9/Exiles | Entered Mines 5296 | -8/Mines | Lost 3 parts (1p1n1w) 5646 | -8/Mines | Found a Scrap Suit stashed away for nefarious purposes 6675 | -8/Mines | Entered Materials 6675 | -8/Materials | Evolved 2 slots: Propulsion x1, Utility x1 6868 | -8/Materials | Met 7R-MNS 6965 | -8/Materials | Build established: Scavenger-Tank 7658 | -8/Materials | Discovered new exit (range 16) 7697 | -8/Materials | Identified exit to Storage 8048 | -8/Materials | Discovered new exit (range 3) 8388 | -8/Materials | Learned Storage trap positions 8443 | -8/Materials | Learned 2 Storage zone layouts 8487 | -8/Materials | Learned location of 2 exits from Lower Caves 8523 | -8/Materials | Learned Storage stockpile data 8570 | -8/Materials | Learned location of Lower Caves (-6) 8625 | -8/Materials | Learned location of 1 exit from Lower Caves 8638 | -8/Materials | Entered Storage 8639 | -8/Storage | Identified exit to Recycling 8641 | -8/Storage | Loaded intel: 7 trap records 8653 | -8/Storage | Met 01-MTF 8742 | -8/Storage | Assisted by bots powering up and referring to "LRC-V3" 8904 | -8/Storage | Repaired Imp. Assault Rifle 9024 | -8/Storage | Garrison activated, responded to threat 9050 | -8/Storage | Identified exit to Garrison 9055 | -8/Storage | Entered Garrison 9055 | -8/Garrison | Accompanied by 5 allies (01-MTF) 9058 | -8/Garrison | 01-MTF left 9058 | -8/Garrison | Lost 6 allies 9065 | -8/Garrison | Triggered checkpoint 9122 | -8/Garrison | Lost 4 allies 9359 | -8/Garrison | Triggered checkpoint 9459 | -8/Garrison | Triggered checkpoint 9775 | -8/Garrison | Rescued a captive Derelict 9776 | -8/Garrison | Rescued a captive Derelict 9831 | -8/Garrison | Garrison Relay disabled 10001 | -8/Garrison | Discovered new exit (range 10) 10095 | -8/Garrison | Triggered checkpoint 10315 | -8/Garrison | Triggered checkpoint 10603 | -8/Garrison | Triggered checkpoint 10654 | -8/Garrison | Installed Relay Interface Framework 10685 | -8/Garrison | Garrison Relay disabled 10749 | -8/Garrison | Discovered new exit (range 10) 10771 | -8/Garrison | Identified exit to Factory 10772 | -8/Garrison | Entered Factory 10772 | -7/Factory | Accompanied by 1 ally 10772 | -7/Factory | Evolved 2 slots: Utility x2 10773 | -7/Factory | Identified exit to Lower Caves 11176 | -7/Factory | Identified exit to Garrison 11176 | -7/Factory | Entered Garrison 11176 | -7/Garrison | Accompanied by 1 ally 11248 | -7/Garrison | Triggered checkpoint 11369 | -7/Garrison | P-60 Hacker assimilated allied Commando 3a 11449 | -7/Garrison | Lost 13 parts (1p5n2u5w) 11615 | -7/Garrison | Triggered checkpoint 11687 | -7/Garrison | Build established: Scavenger-Gunner 11833 | -7/Garrison | Discovered new exit (range 10) 11894 | -7/Garrison | Triggered checkpoint 11929 | -7/Garrison | Garrison Relay disabled 12282 | -7/Garrison | Triggered checkpoint 12410 | -7/Garrison | Expanded RIF knowledge: Structural Interface 12487 | -7/Garrison | Garrison Relay disabled 12574 | -7/Garrison | Triggered checkpoint 12711 | -7/Garrison | Garrison Relay disabled 12861 | -7/Garrison | Discovered new exit (range 12) 12914 | -7/Garrison | Entered Factory 12914 | -6/Factory | Accompanied by 2 allies 12914 | -6/Factory | Evolved 2 slots: Utility x1, Weapon x1 12915 | -6/Factory | Identified exit to Extension 13097 | -6/Factory | Identified exit to Garrison 13783 | -6/Factory | Cargo convoy interrupted 13895 | -6/Factory | Entered Extension 14736 | -6/Extension | Rescued A7 14870 | -6/Extension | Rescued a captive Derelict 14871 | -6/Extension | Rescued a captive Derelict 15158 | -6/Extension | Spotted B-75 Beast 15174 | -6/Extension | Allies destroyed B-75 Beast 15196 | -6/Extension | Spotted B-75 Beast 15222 | -6/Extension | Destroyed B-75 Beast 15241 | -6/Extension | Lost 6 allies 15383 | -6/Extension | Rescued a captive Derelict 15470 | -6/Extension | Disrupted transfer network 15524 | -6/Extension | Rescued a captive Derelict 15525 | -6/Extension | Rescued a captive Derelict 15787 | -6/Extension | Rescued a captive Derelict 15787 | -6/Extension | Rescued a captive Derelict 15846 | -6/Extension | Discovered new exit (range 10) 15848 | -6/Extension | Discovered new exit (range 6) 15919 | -6/Extension | Entered Cetus 15919 | -6/Cetus | Accompanied by 13 allies (A7) 15924 | -6/Cetus | Acquired a Cetus Manufacturing Module code from A7 15939 | -6/Cetus | Spotted Cetus Guard 15940 | -6/Cetus | Spotted Cetus Guard 15940 | -6/Cetus | Destroyed Cetus Guard 15942 | -6/Cetus | Spotted Cetus Guard 15943 | -6/Cetus | Spotted Cetus Guard 15948 | -6/Cetus | Destroyed Cetus Guard 15952 | -6/Cetus | Destroyed Cetus Guard 15957 | -6/Cetus | Destroyed Cetus Guard 16073 | -6/Cetus | Started Cetus Manufacturing Module 16098 | -6/Cetus | Manufactured an Enhanced Grunt 16109 | -6/Cetus | Escorted A7 to Cetus Mainframe 16123 | -6/Cetus | Manufactured an Enhanced Grunt 16131 | -6/Cetus | Discovered new exit (range 15) 16148 | -6/Cetus | Manufactured an Enhanced Grunt 16173 | -6/Cetus | Manufactured an Enhanced Grunt 16198 | -6/Cetus | Manufactured an Enhanced Grunt 16209 | -6/Cetus | Spotted Cetus Guard 16209 | -6/Cetus | Spotted Cetus Guard 16212 | -6/Cetus | Spotted Cetus Guard 16217 | -6/Cetus | Spotted Cetus Guard 16218 | -6/Cetus | Destroyed Cetus Guard 16225 | -6/Cetus | Destroyed Cetus Guard 16232 | -6/Cetus | Destroyed Cetus Guard 16233 | -6/Cetus | Allies destroyed Cetus Guard 16247 | -6/Cetus | Discovered new exit (range 15) 16258 | -6/Cetus | Met Revision 17 16261 | -6/Cetus | Lost 5 allies 16323 | -6/Cetus | Build established: Commander-Tank 16327 | -6/Cetus | Murdered A7 16332 | -6/Cetus | Extracted ID and sensor layout for unrecognized location from A7's data core 16471 | -6/Cetus | Entered Archives 16471 | -6/Archives | Accompanied by 12 allies 16527 | -6/Archives | Lost 3 allies 16786 | -6/Archives | Discovered new exit (range 14) 16857 | -6/Archives | Discovered new exit (range 15) 16937 | -6/Archives | Entered Hub_04(d) 16937 | -6/Hub_04(d) | Accompanied by 9 allies 16945 | -6/Hub_04(d) | Discovered new exit (range 13) 17121 | -6/Hub_04(d) | System corruption reached 10% 17154 | -6/Hub_04(d) | Discovered new exit (range 15) 17345 | -6/Hub_04(d) | Garrison activated, responded to threat 17382 | -6/Hub_04(d) | Lost 3 allies 17416 | -6/Hub_04(d) | Lost 3 allies 17441 | -6/Hub_04(d) | Network Hub disabled 17532 | -6/Hub_04(d) | Spotted Lightning 17534 | -6/Hub_04(d) | Spotted Lightning 17538 | -6/Hub_04(d) | Spotted Lightning 17589 | -6/Hub_04(d) | Build established: Scavenger-Tank 17608 | -6/Hub_04(d) | Entered Factory 17608 | -5/Factory | Evolved 2 slots: Propulsion x1, Utility x1 18000 | -5/Factory | Discovered new exit (range 15) 18208 | -5/Factory | First assault squad dispatched 18536 | -5/Factory | Identified exit to Garrison 18536 | -5/Factory | Entered Garrison 18575 | -5/Garrison | Garrison Relay disabled 18679 | -5/Garrison | Triggered checkpoint 18684 | -5/Garrison | Triggered checkpoint 18810 | -5/Garrison | Expanded RIF knowledge: Autooverride 18948 | -5/Garrison | System corruption reached 10% 18959 | -5/Garrison | Garrison Relay disabled 19003 | -5/Garrison | Lost 7 parts (1p3n2u1w) 19017 | -5/Garrison | Garrison Relay disabled 19137 | -5/Garrison | Discovered new exit (range 14) 19265 | -5/Garrison | Triggered checkpoint 19450 | -5/Garrison | Discovered new exit (range 15) 19468 | -5/Garrison | Expanded RIF knowledge: Coupler Efficiency 19513 | -5/Garrison | Entered Factory 19688 | -5/Factory | Discovered new exit (range 5) 19813 | -5/Factory | First assault squad dispatched 19826 | -5/Factory | Identified exit to Garrison 19826 | -5/Factory | Entered Garrison 19828 | -5/Garrison | Triggered checkpoint 19857 | -5/Garrison | Lost 3 parts (1n2u) 19884 | -5/Garrison | Triggered checkpoint 19916 | -5/Garrison | Found embedded Infiltrators 20009 | -5/Garrison | Triggered checkpoint 20018 | -5/Garrison | Triggered checkpoint 20033 | -5/Garrison | Triggered checkpoint 20074 | -5/Garrison | Lost 3 allies 20252 | -5/Garrison | Rescued a captive Derelict 20262 | -5/Garrison | Garrison Relay disabled 20313 | -5/Garrison | Discovered new exit (range 15) 20426 | -5/Garrison | Triggered checkpoint 20508 | -5/Garrison | Spotted B-86 Titan 20582 | -5/Garrison | Triggered checkpoint 20599 | -5/Garrison | Discovered new exit (range 10) 20783 | -5/Garrison | Expanded RIF knowledge: Zone Cloak 20813 | -5/Garrison | Discovered new exit (range 8) 20848 | -5/Garrison | Expanded RIF knowledge: Code Merge 20873 | -5/Garrison | Entered Factory 20873 | -4/Factory | Evolved 2 slots: Power x1, Utility x1 21013 | -4/Factory | Discovered new exit (range 4) 21124 | -4/Factory | Sucked down chute 21124 | -4/Factory | Entered Waste 21139 | -4/Waste | EMP discharged 21139 | -4/Waste | System corruption reached 10% 21140 | -4/Waste | Spotted C-40 Crusher 21157 | -4/Waste | Spotted C-40 Crusher 21166 | -4/Waste | Destroyed C-40 Crusher 21182 | -4/Waste | Found Unknown Protection 21182 | -4/Waste | Identified Damper Plating 21187 | -4/Waste | Spotted C-40 Crusher 21190 | -4/Waste | Spotted C-40 Crusher 21197 | -4/Waste | Spotted C-40 Crusher 21238 | -4/Waste | Spotted C-40 Crusher 21239 | -4/Waste | EMP discharged 21339 | -4/Waste | EMP discharged 21349 | -4/Waste | Destroyed C-40 Crusher 21380 | -4/Waste | Destroyed C-40 Crusher 21398 | -4/Waste | Destroyed C-40 Crusher 21425 | -4/Waste | Destroyed C-40 Crusher 21439 | -4/Waste | EMP discharged 21484 | -4/Waste | Destroyed C-40 Crusher 21528 | -4/Waste | Discovered new exit (range 10) 21539 | -4/Waste | EMP discharged 21543 | -4/Waste | Entered Factory 22298 | -4/Factory | Repaired Centrium Heavy Treads 22373 | -4/Factory | Destroyed 7 combat bots 22423 | -4/Factory | Found Prototype Processor 22423 | -4/Factory | Identified Exp. Melee Analysis Suite 22504 | -4/Factory | Spotted B-86 Titan 22508 | -4/Factory | Assimilated Titan 7a with formatsys_high 22517 | -4/Factory | Allies destroyed Titan 7a 22620 | -4/Factory | Lost 6 allies 22858 | -4/Factory | Spotted B-86 Titan 22871 | -4/Factory | Destroyed B-86 Titan 22993 | -4/Factory | Discovered new exit (range 5) 23377 | -4/Factory | Discovered new exit (range 24) 23560 | -4/Factory | Entered Research 23560 | -3/Research | Evolved 2 slots: Propulsion x1, Weapon x1 23760 | -3/Research | Revision forces began assault on 0b10 23813 | -3/Research | Met up with Revision 17++ 24091 | -3/Research | Discovered new exit (range 24) 24151 | -3/Research | Identified exit to Armory 24151 | -3/Research | Identified exit to Testing 24253 | -3/Research | Entered Testing 24477 | -3/Testing | Spotted Striker 24634 | -3/Testing | Found Prototype Device 24634 | -3/Testing | Identified 2N-1CE's Frost Array 24695 | -3/Testing | Found Prototype Device 24695 | -3/Testing | Identified Adv. Kinecellerator 24780 | -3/Testing | Found Prototype Leg 24780 | -3/Testing | Identified Myomer Exoskeleton 25014 | -3/Testing | Found Prototype Protection 25014 | -3/Testing | Identified Centrium Heavy Armor Plating 25059 | -3/Testing | Crushed by falling debris 25196 | -3/Testing | Scanned by Researcher 25270 | -3/Testing | Discovered new exit (range 7) 25300 | -3/Testing | System corruption reached 10% 25381 | -3/Testing | Found Prototype Protection 25381 | -3/Testing | Identified Hvy. Regenerative Plating 25462 | -3/Testing | Lost 3 parts (3w) 25525 | -3/Testing | Found Gamma Bomb Array 25741 | -3/Testing | Identified exit to Garrison 25741 | -3/Testing | Entered Garrison 25777 | -3/Garrison | Triggered checkpoint 25812 | -3/Garrison | Garrison Relay disabled 25906 | -3/Garrison | Found Unknown Hackware 25908 | -3/Garrison | Found Unknown Hackware 25911 | -3/Garrison | Found Unknown Hackware 25981 | -3/Garrison | Spotted B-86 Titan 26005 | -3/Garrison | Destroyed B-86 Titan 26032 | -3/Garrison | Triggered checkpoint 26054 | -3/Garrison | Triggered checkpoint 26111 | -3/Garrison | Triggered checkpoint 26197 | -3/Garrison | Build established: Bothacker-Tank 26239 | -3/Garrison | Garrison Relay disabled 26253 | -3/Garrison | Triggered checkpoint 26325 | -3/Garrison | Discovered new exit (range 13) 26426 | -3/Garrison | Triggered checkpoint 26469 | -3/Garrison | Destroyed 10 combat bots 26501 | -3/Garrison | Phase Generator disabled 26549 | -3/Garrison | Rescued a captive Derelict 26550 | -3/Garrison | Rescued a captive Derelict 26577 | -3/Garrison | Discovered new exit (range 5) 26656 | -3/Garrison | Garrison Relay disabled 26680 | -3/Garrison | Triggered checkpoint 26680 | -3/Garrison | Garrison Relay disabled 26725 | -3/Garrison | Expanded RIF knowledge: Hotswap 26949 | -3/Garrison | Discovered new exit (range 15) 26980 | -3/Garrison | Entered Research 26980 | -2/Research | Evolved 2 slots: Power x1, Utility x1 27037 | -2/Research | Spotted B-90 Cyclops 27070 | -2/Research | Destroyed B-90 Cyclops 27145 | -2/Research | Lost 3 parts (1p2w) 27504 | -2/Research | Cargo convoy interrupted 27506 | -2/Research | Spotted Executioner 27507 | -2/Research | Spotted Striker 27507 | -2/Research | Spotted Striker 27507 | -2/Research | Destroyed Striker 27512 | -2/Research | Destroyed Striker 27512 | -2/Research | Destroyed Executioner 27551 | -2/Research | Lost 3 parts (1n2w) 27559 | -2/Research | Build established: Bothacker-Skirmisher 27565 | -2/Research | Destroyed 13 combat bots 27586 | -2/Research | Found Prototype Device 27586 | -2/Research | Identified Exp. Shock Absorption System 27730 | -2/Research | First assault squad dispatched 27850 | -2/Research | System corruption reached 10% 27893 | -2/Research | Lost 6 parts (1n2u3w) 27896 | -2/Research | Discovered new exit (range 16) 27904 | -2/Research | Discovered new exit (range 16) 28026 | -2/Research | High security lockdown imminent 28076 | -2/Research | Spotted B-90 Cyclops 28101 | -2/Research | Entered Quarantine 28228 | -2/Quarantine | Found Alien Energy Cannon 28272 | -2/Quarantine | Found Alien Impact Weapon 28314 | -2/Quarantine | Found Alien Artifact 28326 | -2/Quarantine | Discovered new exit (range 20) 28414 | -2/Quarantine | Found Alien Artifact 28422 | -2/Quarantine | Found Alien Artifact 28469 | -2/Quarantine | Identified Relay Coupler [Proto] (x3) 28491 | -2/Quarantine | Spotted Fortress 28499 | -2/Quarantine | Assimilated Fortress with formatsys_high 28659 | -2/Quarantine | Discovered new exit (range 6) 28659 | -2/Quarantine | Discovered new exit (range 7) 28693 | -2/Quarantine | Identified Core Stripper 28716 | -2/Quarantine | Destroyed Fortress 28733 | -2/Quarantine | Found Prototype Device 28733 | -2/Quarantine | Identified Thermal Barrier 28742 | -2/Quarantine | Found Prototype Device 28742 | -2/Quarantine | Identified Exp. Force Field 28765 | -2/Quarantine | Found Prototype Reactor 28765 | -2/Quarantine | Identified Vortex Chain Reactor 28805 | -2/Quarantine | Entered Protoforge 28960 | -2/Protoforge | Spotted Hotshot 28961 | -2/Protoforge | Spotted Hotshot 28962 | -2/Protoforge | Spotted Hotshot 28964 | -2/Protoforge | Spotted Hotshot 28964 | -2/Protoforge | Spotted Hotshot 28968 | -2/Protoforge | Superfortress began startup sequence 28970 | -2/Protoforge | Destroyed Hotshot 28971 | -2/Protoforge | Destroyed Hotshot 28972 | -2/Protoforge | Destroyed Hotshot 28973 | -2/Protoforge | Destroyed Hotshot 28994 | -2/Protoforge | Destroyed 8 combat bots 29055 | -2/Protoforge | First assault squad dispatched 29106 | -2/Protoforge | Destroyed 7 combat bots 29108 | -2/Protoforge | Discovered new exit (range 11) 29228 | -2/Protoforge | Spotted Overlord 29239 | -2/Protoforge | Assimilated Overlord with formatsys_high 29306 | -2/Protoforge | Identified Core Cannon 29385 | -2/Protoforge | Additional patrols dispatched to research labs 29421 | -2/Protoforge | Spotted Immortal 29435 | -2/Protoforge | Assimilated Immortal with formatsys_high 29528 | -2/Protoforge | Build established: Tank 29559 | -2/Protoforge | Spotted Decapitator 29559 | -2/Protoforge | Spotted Decapitator 29559 | -2/Protoforge | Spotted Decapitator 29559 | -2/Protoforge | Spotted Decapitator 29587 | -2/Protoforge | Destroyed Decapitator 29597 | -2/Protoforge | Destroyed Decapitator 29604 | -2/Protoforge | Destroyed Decapitator 29630 | -2/Protoforge | Found Prototype Device 29630 | -2/Protoforge | Identified Crosscalibrator 29694 | -2/Protoforge | Found Cep. EMP Blanket Launcher 29699 | -2/Protoforge | Found Cep. Smart ZDS 29747 | -2/Protoforge | Destroyed Decapitator 29947 | -2/Protoforge | Spotted Decapitator 29947 | -2/Protoforge | Spotted Decapitator 29948 | -2/Protoforge | Spotted Decapitator 29952 | -2/Protoforge | Destroyed Decapitator 29954 | -2/Protoforge | Allies destroyed Decapitator 29958 | -2/Protoforge | Destroyed Immortal 29960 | -2/Protoforge | Destroyed Decapitator 30038 | -2/Protoforge | Found Cep. Matter Streamer 30041 | -2/Protoforge | Found Cep. Chromion Battery 30053 | -2/Protoforge | Found Cep. NT7 Matterbank 30060 | -2/Protoforge | Spotted V628-g 30060 | -2/Protoforge | Spotted V056-c 30060 | -2/Protoforge | Spotted V669-d 30060 | -2/Protoforge | Spotted V272-k 30074 | -2/Protoforge | Found Cep. Antigrav Storage Unit 30144 | -2/Protoforge | Identified exit to Garrison 30144 | -2/Protoforge | Entered Garrison 30225 | -2/Garrison | Spotted B-90 Cyclops 30238 | -2/Garrison | Triggered checkpoint 30242 | -2/Garrison | Build established: Scavenger-Tank 30243 | -2/Garrison | Destroyed B-90 Cyclops 30307 | -2/Garrison | Lost 6 parts (1n2u3w) 30328 | -2/Garrison | Triggered checkpoint 30336 | -2/Garrison | Destroyed 10 combat bots 30406 | -2/Garrison | Discovered new exit (range 12) 30450 | -2/Garrison | Triggered checkpoint 30504 | -2/Garrison | Garrison Relay disabled 30525 | -2/Garrison | Found embedded Infiltrators 30664 | -2/Garrison | Discovered new exit (range 10) 30705 | -2/Garrison | Expanded RIF knowledge: Threat Obfuscation 30808 | -2/Garrison | Entered Access 30808 | -1/Access | Evolved 2 slots: Propulsion x1, Utility x1 31308 | -1/Access | First assault squad dispatched 31325 | -1/Access | Spotted B-99 Colossus 31813 | -1/Access | Destroyed 8 combat bots 32048 | -1/Access | Build established: Scavenger-Gunner 32060 | -1/Access | Destroyed 8 combat bots 32235 | -1/Access | Crushed by falling debris 32350 | -1/Access | System corruption reached 10% 32406 | -1/Access | Lost 5 parts (3u2w) 32425 | -1/Access | Destroyed 11 combat bots 32517 | -1/Access | Lost 3 parts (2p1w) 32639 | -1/Access | Lost 5 parts (2p1u2w) 32686 | -1/Access | High security lockdown imminent 32766 | -1/Access | High security lockdown engaged 32951 | -1/Access | Spotted Investigator 32976 | -1/Access | Self-destructed Last Messages --------------- 32969_ System corrupted: FCS attempts to trigger Enh. Nova Cannon. 32969_ System corrupted: Enh. Nova Cannon misfires. 32969_ Enh. Hardcell Cannon destroyed. 32969_ Knocked back. 32969_ Held in stasis. 32969_ Investigator is analyzing... 32970_ Power failure, Rnf. Antimatter Reactor shutdown. 32972_ Enh. Nova Cannon destroyed. 32972_ Held in stasis. 32972_ Investigator is analyzing... 32974_ Core Cannon broken. 32974_ Overheating: Short circuit. 32975_ Overheating: Energy bleed (-23). 32975_ The unstable cave ceiling collapses. 32975_ Stasis bubble strength at 80. 32975_ Held in stasis. 32975_ Investigator is analyzing... 32975_ Knocked back. 32975_ G-73 Enforcer stasis bubble strength at 177. [Achievement: Rambo] Map ----- +----------------------------------------------------+ | ??????????????????????????????????????? | | ??????????????????????????????????????? | | ??????????????????????????????????????? | | ??????????????????????????????????????? | | ??????????????????????????????????????? | | ??????????????????????????????????????? | | ????????????? ????? ??????????????????? | | ???????????????"????????????????? ??? | | ???????????#??????????????????????#??? | | ??##???#????????????????? ???????#??? ? | | ???#???????#? ?????????? ???? ? ????? | | ##???????????????? ??? ? ?? ?????##? ?? | | ####?#??#????#??####?#? ???? ????? ? | | ????#????#???#???#??#???? ? ?????#?#?# | | ??????#???##########?# ????? ???#????# | | #?????#??## ^ ### ??? ????#????# | | ??#?#?##??# ####??##??#??####### | | ??#??#?#?## ?? ????? | | ?#??###?### ? ?? ? | | ##??##?#### ??? ? | | ##?#??##### """"" ??"""" | | ?####???#?? """""""" """""""" | | ?##?##?##?# ! """""""" """""""" | | ##?#?##??#??# " " " """"" | | ##??##?##??## | | ?#?##?#??#### @ g | | #??#?####?### g | | ##??###?#####lblb = g ;;#####?# | | ##### ####### b g ############+## | | ?#### ###g gg c # # | | ### g""""" # # | | ### ggb """ # # | | ## """ # # | | # # gi "" + # | | # # # g " # " + | | # # i "" # """ # | | # =# # """ # | | ## " # " !# | | # # # ## ##+####### | | # ## # ? ?# | | # " + # | | # # ## " # ? ###### | | ## # ### # ?? ?+? ?? | | #### + #? ? #????# | | ???## ] # # #?? | | ##??## # # ? ?? ??? | | #?##?## ## + #####?? ? ?? | | ?######### ###########?#?# ? ?? | | #????#?### "" "" ########?######? ?? | | #####???## ""T"" ##??#?#??#?#?#? ? ? | +----------------------------------------------------+ Best States ------------- Heat Dissipation 152 Energy Generation 75 Energy Capacity 940 Matter Stores 300 Matter Capacity 300 Sight Range 16 Robot Scan Range 15 Terrain Scan Range 24 Terrain Scan Density 210 Jamming Range 16 Armor Coverage 1600 Resistance: EM 90 Weapon Cycling 25 Phase Shifting 15 Evasion (%) 70 Targeting Accuracy 8 Target Analysis 8 Core Analysis 6 Recoil Reduction 6 Kinecelleration 40 Relay Coupler Types 2 Relay Coupler Value 66 Item Schematics ----------------- Exp. Energy Well | -3/Testing | Archive Adv. Gravity Neutralizer | -3/Testing | Archive Hvy. Neutron Cannon | -3/Testing | Archive Thermal Defense Suite | -3/Testing | Archive Imp. Diametric Drive | -3/Testing | Archive Exp. EM Disruption Field | -2/Protoforge | Archive Exp. Terrain Scan Processor | -2/Protoforge | Archive Exp. Biometal Leg | -2/Protoforge | Archive Tiamat Missile Launcher | -2/Protoforge | Archive Exp. Target Analyzer | -2/Protoforge | Archive Robot Schematics ------------------ S-43 Plague | -2/Protoforge | Archive G-73 Enforcer | -2/Protoforge | Archive Fabricated ------------ Nothing Repaired ---------- Lgt. Treads | 10% | -9/Materials Imp. Assault Rifle | 12% | -8/Storage Centrium Heavy Treads | 50% | -4/Factory Alien Tech Used ----------------- Core Stripper Core Cannon Achievements -------------- Rambo Challenges ------------ None Game ------ Seed AccelerationScrapWartreads Manual? 0 Play Time 05:45:52 Cumulative 149.0 hours Start 2025.07.31 @ 06:46:03 End 2025.08.03 @ 21:54:02 Sessions 5 Manual Loads 0 Difficulty Rogue Special Mode None Game No. 77 Rogue 77 Adventurer 0 Explorer 0 Win Type - Total 13 Types 3/1/4/1/1/0/0/1/0/2 Lore% 68 Gallery% 66 Achievement% 63 Wizard Run 0 Options --------- Layout 0 ASCII 0 Keyboard 1 Movement Vi Keybinds 0 Fullscreen 2 Font 18/SmallcapsGlow Map View 76x50 Zoom Use 0% Tactical HUD 1 Map Filters NONE Filters NONE Steam 1 RUN: c55ab9c8-a7fd-485e-b2f5-c5a2afb6cb7e